{"text_format":"1","workbook":"xlsx","n_sheets":8,"sheets":["Note","Table_old","Table","Remarks","Definitions","Data","Param","Dataload"],"not_rendered":{"charts":0,"images":0,"macros":1,"external_links":0,"defined_names":60,"comments":0,"pivot_tables":0},"unopened":[],"bounds":{"document_bytes":16777216,"sheet_cells":100000,"rows_first":2000,"rows_last":500,"rows_between":2000,"halvings":0,"cell_chars":16384,"cell_head_chars":4096},"cells_cut":0,"cells_raw":0,"read":"whole","date_system":"1900"}

{"sheet":"Note","index":0,"n_rows":16,"n_cols":2,"rows_kept":16,"cut":false,"hidden":false,"merged":[[14,1,14,8],[15,1,15,8]]}
[]
[]
[]
[null,"RENEWABLES AND WASTE"]
[]
[]
[null,"ANNUAL MINI QUESTIONNAIRE"]
[null,{"$f":"DataCountry","v":0}]
[null,{"$f":"DataYear+1&\"E\"","v":"1E"}]
[]
[]
[]
[]
[]
[null,"Contact for OECD countries: RenewAQ@iea.org"]
[null,"Contact for non-OECD countries: WED@iea.org"]

{"sheet":"Table_old","index":1,"n_rows":89,"n_cols":10,"rows_kept":89,"cut":false,"hidden":true,"merged":[[1,1,1,4],[2,1,2,4]]}
[]
[null,"Renewables and Waste Mini Questionnaire",null,null,null,null,null,"Datatype"]
[null,{"$f":"Data!B2","v":0},null,null,null,null,null,"BALANCE"]
[null,null,null,null,null,null,null,"Item2"]
[null,null,null,{"$f":"DataYear","v":0},{"$f":"DataYear+1&\"E\"","v":"1E"}]
[null,"Geothermal, Direct Use (TJ)",null,null,null,null,null,"Item1","Product","Concatenated"]
[null,null,"Distribution Losses",{"$f":"IFERROR(VLOOKUP(J7&REPT(\" \",18-LEN(I7)-LEN(H7)),Data!A:B,2,FALSE),\"\")","v":""},0,null,null,"DISTLOSS","GEOTHERM",{"$f":"IF(H7=0, \"\",CONCATENATE(I7,\".\",H7))","v":"GEOTHERM.DISTLOSS"}]
[null,null,"Total Final Consumption *",{"$f":"IFERROR(VLOOKUP(J8&REPT(\" \",18-LEN(I8)-LEN(H8)),Data!A:B,2,FALSE),\"\")","v":""},0,null,null,"FINCONS","GEOTHERM",{"$f":"IF(H8=0, \"\",CONCATENATE(I8,\".\",H8))","v":"GEOTHERM.FINCONS"}]
[null,"* Please note that this includes only geothermal energy consumed directly (and not to produce",null,null,null,null,null,null,null,""]
[null,"   electricity and/or heat sold, which is reported in the Mini Electricity and Heat Questionnaire)",null,null,null,null,null,null,null,""]
[null,"Solar Thermal, Direct Use (TJ)",null,null,null,null,null,null,null,""]
[null,null,"Distribution Losses",{"$f":"IFERROR(VLOOKUP(J12&REPT(\" \",18-LEN(I12)-LEN(H12)),Data!A:B,2,FALSE),\"\")","v":""},0,null,null,"DISTLOSS","SOLARTH","SOLARTH.DISTLOSS"]
[null,null,"Total Final Consumption *",{"$f":"IFERROR(VLOOKUP(J13&REPT(\" \",18-LEN(I13)-LEN(H13)),Data!A:B,2,FALSE),\"\")","v":""},0,null,null,"FINCONS","SOLARTH","SOLARTH.FINCONS"]
[null,"* Please note that this includes only solar thermal energy consumed directly (and not to produce",null,null,null,null,null,null,null,""]
[null,"   electricity and/or heat sold, which is reported in the Mini Electricity and Heat Questionnaire)",null,null,null,null,null,null,null,""]
[null,"Industrial Waste (non-renewable) (TJ, net)",null,null,null,null,null,null,null,""]
[null,"(+)","Indigenous Production",{"$f":"IFERROR(VLOOKUP(J17&REPT(\" \",18-LEN(I17)-LEN(H17)),Data!A:B,2,FALSE),\"\")","v":""},0,null,null,"INDPROD","INDWASTE","INDWASTE.INDPROD"]
[null,"(+)","Total Imports (Balance)",{"$f":"IFERROR(VLOOKUP(J18&REPT(\" \",18-LEN(I18)-LEN(H18)),Data!A:B,2,FALSE),\"\")","v":""},0,null,null,"TOTIMPSB","INDWASTE","INDWASTE.TOTIMPSB"]
[null,"(-)","Total Exports (Balance)",{"$f":"IFERROR(VLOOKUP(J19&REPT(\" \",18-LEN(I19)-LEN(H19)),Data!A:B,2,FALSE),\"\")","v":""},0,null,null,"TOTEXPSB","INDWASTE","INDWASTE.TOTEXPSB"]
[null,"(+/-)","Stock Changes (National Territory)",{"$f":"IFERROR(VLOOKUP(J20&REPT(\" \",18-LEN(I20)-LEN(H20)),Data!A:B,2,FALSE),\"\")","v":""},0,null,null,"STCHANAT","INDWASTE","INDWASTE.STCHANAT"]
[null,"(=)","Inland Consumption (Calculated)",{"$f":"IFERROR(VLOOKUP(J21&REPT(\" \",18-LEN(I21)-LEN(H21)),Data!A:B,2,FALSE),\"\")","v":""},{"$f":"E17+E18-E19+E20","v":0},null,null,"INDCONC","INDWASTE","INDWASTE.INDCONC"]
[null,"Municipal Waste (renewable) (TJ, net)",null,null,null,null,null,null,null,""]
[null,"(+)","Indigenous Production",{"$f":"IFERROR(VLOOKUP(J23&REPT(\" \",18-LEN(I23)-LEN(H23)),Data!A:B,2,FALSE),\"\")","v":""},0,null,null,"INDPROD","MUNWASTER","MUNWASTER.INDPROD"]
[null,"(+)","Total Imports (Balance)",{"$f":"IFERROR(VLOOKUP(J24&REPT(\" \",18-LEN(I24)-LEN(H24)),Data!A:B,2,FALSE),\"\")","v":""},0,null,null,"TOTIMPSB","MUNWASTER","MUNWASTER.TOTIMPSB"]
[null,"(-)","Total Exports (Balance)",{"$f":"IFERROR(VLOOKUP(J25&REPT(\" \",18-LEN(I25)-LEN(H25)),Data!A:B,2,FALSE),\"\")","v":""},0,null,null,"TOTEXPSB","MUNWASTER","MUNWASTER.TOTEXPSB"]
[null,"(+/-)","Stock Changes (National Territory)",{"$f":"IFERROR(VLOOKUP(J26&REPT(\" \",18-LEN(I26)-LEN(H26)),Data!A:B,2,FALSE),\"\")","v":""},0,null,null,"STCHANAT","MUNWASTER","MUNWASTER.STCHANAT"]
[null,"(=)","Inland Consumption (Calculated)",{"$f":"IFERROR(VLOOKUP(J27&REPT(\" \",18-LEN(I27)-LEN(H27)),Data!A:B,2,FALSE),\"\")","v":""},{"$f":"E23+E24-E25+E26","v":0},null,null,"INDCONC","MUNWASTER","MUNWASTER.INDCONC"]
[null,"Municipal Waste (non-renewable) (TJ, net)",null,null,null,null,null,null,null,""]
[null,"(+)","Indigenous Production",{"$f":"IFERROR(VLOOKUP(J29&REPT(\" \",18-LEN(I29)-LEN(H29)),Data!A:B,2,FALSE),\"\")","v":""},0,null,null,"INDPROD","MUNWASTEN","MUNWASTEN.INDPROD"]
[null,"(+)","Total Imports (Balance)",{"$f":"IFERROR(VLOOKUP(J30&REPT(\" \",18-LEN(I30)-LEN(H30)),Data!A:B,2,FALSE),\"\")","v":""},0,null,null,"TOTIMPSB","MUNWASTEN","MUNWASTEN.TOTIMPSB"]
[null,"(-)","Total Exports (Balance)",{"$f":"IFERROR(VLOOKUP(J31&REPT(\" \",18-LEN(I31)-LEN(H31)),Data!A:B,2,FALSE),\"\")","v":""},0,null,null,"TOTEXPSB","MUNWASTEN","MUNWASTEN.TOTEXPSB"]
[null,"(+/-)","Stock Changes (National Territory)",{"$f":"IFERROR(VLOOKUP(J32&REPT(\" \",18-LEN(I32)-LEN(H32)),Data!A:B,2,FALSE),\"\")","v":""},0,null,null,"STCHANAT","MUNWASTEN","MUNWASTEN.STCHANAT"]
[null,"(=)","Inland Consumption (Calculated)",{"$f":"IFERROR(VLOOKUP(J33&REPT(\" \",18-LEN(I33)-LEN(H33)),Data!A:B,2,FALSE),\"\")","v":""},{"$f":"E29+E30-E31+E32","v":0},null,null,"INDCONC","MUNWASTEN","MUNWASTEN.INDCONC"]
[null,"Solid Biofuels excluding charcoal (TJ, net)",null,null,null,null,null,null,null,""]
[null,"(+)","Indigenous Production",{"$f":"IFERROR(VLOOKUP(J35&REPT(\" \",18-LEN(I35)-LEN(H35)),Data!A:B,2,FALSE),\"\")","v":""},0,null,null,"INDPROD","PRIMSBIO","PRIMSBIO.INDPROD"]
[null,"(+)","Total Imports (Balance)",{"$f":"IFERROR(VLOOKUP(J36&REPT(\" \",18-LEN(I36)-LEN(H36)),Data!A:B,2,FALSE),\"\")","v":""},0,null,null,"TOTIMPSB","PRIMSBIO","PRIMSBIO.TOTIMPSB"]
[null,"(-)","Total Exports (Balance)",{"$f":"IFERROR(VLOOKUP(J37&REPT(\" \",18-LEN(I37)-LEN(H37)),Data!A:B,2,FALSE),\"\")","v":""},0,null,null,"TOTEXPSB","PRIMSBIO","PRIMSBIO.TOTEXPSB"]
[null,"(+/-)","Stock Changes (National Territory)",{"$f":"IFERROR(VLOOKUP(J38&REPT(\" \",18-LEN(I38)-LEN(H38)),Data!A:B,2,FALSE),\"\")","v":""},0,null,null,"STCHANAT","PRIMSBIO","PRIMSBIO.STCHANAT"]
[null,"(=)","Inland Consumption (Calculated)",{"$f":"IFERROR(VLOOKUP(J39&REPT(\" \",18-LEN(I39)-LEN(H39)),Data!A:B,2,FALSE),\"\")","v":""},{"$f":"E35+E36-E37+E38","v":0},null,null,"INDCONC","PRIMSBIO","PRIMSBIO.INDCONC"]
[null,"Charcoal (thousand metric tons)",null,null,null,null,null,null,null,""]
[null,"(+)","Indigenous Production",{"$f":"IFERROR(VLOOKUP(J41&REPT(\" \",18-LEN(I41)-LEN(H41)),Data!A:B,2,FALSE),\"\")","v":""},0,null,null,"INDPROD","CHARCOAL","CHARCOAL.INDPROD"]
[null,"(+)","Total Imports (Balance)",{"$f":"IFERROR(VLOOKUP(J42&REPT(\" \",18-LEN(I42)-LEN(H42)),Data!A:B,2,FALSE),\"\")","v":""},0,null,null,"TOTIMPSB","CHARCOAL","CHARCOAL.TOTIMPSB"]
[null,"(-)","Total Exports (Balance)",{"$f":"IFERROR(VLOOKUP(J43&REPT(\" \",18-LEN(I43)-LEN(H43)),Data!A:B,2,FALSE),\"\")","v":""},0,null,null,"TOTEXPSB","CHARCOAL","CHARCOAL.TOTEXPSB"]
[null,"(+/-)","Stock Changes (National Territory)",{"$f":"IFERROR(VLOOKUP(J44&REPT(\" \",18-LEN(I44)-LEN(H44)),Data!A:B,2,FALSE),\"\")","v":""},0,null,null,"STCHANAT","CHARCOAL","CHARCOAL.STCHANAT"]
[null,"(=)","Inland Consumption (Calculated)",{"$f":"IFERROR(VLOOKUP(J45&REPT(\" \",18-LEN(I45)-LEN(H45)),Data!A:B,2,FALSE),\"\")","v":""},{"$f":"E41+E42-E43+E44","v":0},null,null,"INDCONC","CHARCOAL","CHARCOAL.INDCONC"]
[null,"Biogases (TJ, net)",null,null,null,null,null,null,null,""]
[null,"(+)","Indigenous Production (a+b+c+d)",{"$f":"IFERROR(VLOOKUP(J47&REPT(\" \",18-LEN(I47)-LEN(H47)),Data!A:B,2,FALSE),\"\")","v":""},0,null,null,"INDPROD","BIOGASES","BIOGASES.INDPROD"]
[null,"(+)","Total Imports (Balance)",{"$f":"IFERROR(VLOOKUP(J48&REPT(\" \",18-LEN(I48)-LEN(H48)),Data!A:B,2,FALSE),\"\")","v":""},0,null,null,"TOTIMPSB","BIOGASES","BIOGASES.TOTIMPSB"]
[null,"(-)","Total Exports (Balance)",{"$f":"IFERROR(VLOOKUP(J49&REPT(\" \",18-LEN(I49)-LEN(H49)),Data!A:B,2,FALSE),\"\")","v":""},0,null,null,"TOTEXPSB","BIOGASES","BIOGASES.TOTEXPSB"]
[null,"(+/-)","Stock Changes (National Territory)",{"$f":"IFERROR(VLOOKUP(J50&REPT(\" \",18-LEN(I50)-LEN(H50)),Data!A:B,2,FALSE),\"\")","v":""},0,null,null,"STCHANAT","BIOGASES","BIOGASES.STCHANAT"]
[null,"(=)","Inland Consumption (Calculated)",{"$f":"IFERROR(VLOOKUP(J51&REPT(\" \",18-LEN(I51)-LEN(H51)),Data!A:B,2,FALSE),\"\")","v":""},{"$f":"E47+E48-E49+E50","v":0},null,null,"INDCONC","BIOGASES","BIOGASES.INDCONC"]
[null,"Of which: Landfill Gas (TJ, net)",null,null,null,null,null,null,null,""]
[null,"a","Indigenous Production",{"$f":"IFERROR(VLOOKUP(J53&REPT(\" \",18-LEN(I53)-LEN(H53)),Data!A:B,2,FALSE),\"\")","v":""},0,null,null,"INDPROD","LANDFILL","LANDFILL.INDPROD"]
[null,"Of which: Sewage Sludge Gas (TJ, net)",null,null,null,null,null,null,null,""]
[null,"b","Indigenous Production",{"$f":"IFERROR(VLOOKUP(J55&REPT(\" \",18-LEN(I55)-LEN(H55)),Data!A:B,2,FALSE),\"\")","v":""},0,null,null,"INDPROD","SLUDGEGS","SLUDGEGS.INDPROD"]
[null,"Of which: Other Biogases from Anaerobic Fermentation (TJ, net)",null,null,null,null,null,null,null,""]
[null,"c","Indigenous Production",{"$f":"IFERROR(VLOOKUP(J57&REPT(\" \",18-LEN(I57)-LEN(H57)),Data!A:B,2,FALSE),\"\")","v":""},0,null,null,"INDPROD","OBIOGAS","OBIOGAS.INDPROD"]
[null,"Of which: Biogases from Thermal Processes (TJ, net)",null,null,null,null,null,null,null,""]
[null,"d","Indigenous Production",{"$f":"IFERROR(VLOOKUP(J59&REPT(\" \",18-LEN(I59)-LEN(H59)),Data!A:B,2,FALSE),\"\")","v":""},0,null,null,"INDPROD","BGTHERM","BGTHERM.INDPROD"]
[null,"Biogasoline (thousand metric tons)",null,null,null,null,null,null,null,""]
[null,"(+)","Indigenous Production",{"$f":"IFERROR(VLOOKUP(J61&REPT(\" \",18-LEN(I61)-LEN(H61)),Data!A:B,2,FALSE),\"\")","v":""},0,null,null,"INDPROD","BIOGASOL","BIOGASOL.INDPROD"]
[null,"(+)","Total Imports (Balance)",{"$f":"IFERROR(VLOOKUP(J62&REPT(\" \",18-LEN(I62)-LEN(H62)),Data!A:B,2,FALSE),\"\")","v":""},0,null,null,"TOTIMPSB","BIOGASOL","BIOGASOL.TOTIMPSB"]
[null,"(-)","Total Exports (Balance)",{"$f":"IFERROR(VLOOKUP(J63&REPT(\" \",18-LEN(I63)-LEN(H63)),Data!A:B,2,FALSE),\"\")","v":""},0,null,null,"TOTEXPSB","BIOGASOL","BIOGASOL.TOTEXPSB"]
[null,"(+/-)","Stock Changes (National Territory)",{"$f":"IFERROR(VLOOKUP(J64&REPT(\" \",18-LEN(I64)-LEN(H64)),Data!A:B,2,FALSE),\"\")","v":""},0,null,null,"STCHANAT","BIOGASOL","BIOGASOL.STCHANAT"]
[null,"(=)","Inland Consumption (Calculated)",{"$f":"IFERROR(VLOOKUP(J65&REPT(\" \",18-LEN(I65)-LEN(H65)),Data!A:B,2,FALSE),\"\")","v":""},{"$f":"E61+E62-E63+E64","v":0},null,null,"INDCONC","BIOGASOL","BIOGASOL.INDCONC"]
[null,"Of which: Bioethanol (thousand metric tons)",null,null,null,null,null,null,null,""]
[null,"(+)","Indigenous Production",{"$f":"IFERROR(VLOOKUP(J67&REPT(\" \",18-LEN(I67)-LEN(H67)),Data!A:B,2,FALSE),\"\")","v":""},0,null,null,"INDPROD","BIOETHANOL","BIOETHANOL.INDPROD"]
[null,"(+)","Total Imports (Balance)",{"$f":"IFERROR(VLOOKUP(J68&REPT(\" \",18-LEN(I68)-LEN(H68)),Data!A:B,2,FALSE),\"\")","v":""},0,null,null,"TOTIMPSB","BIOETHANOL","BIOETHANOL.TOTIMPSB"]
[null,"(-)","Total Exports (Balance)",{"$f":"IFERROR(VLOOKUP(J69&REPT(\" \",18-LEN(I69)-LEN(H69)),Data!A:B,2,FALSE),\"\")","v":""},0,null,null,"TOTEXPSB","BIOETHANOL","BIOETHANOL.TOTEXPSB"]
[null,"(+/-)","Stock Changes (National Territory)",{"$f":"IFERROR(VLOOKUP(J70&REPT(\" \",18-LEN(I70)-LEN(H70)),Data!A:B,2,FALSE),\"\")","v":""},0,null,null,"STCHANAT","BIOETHANOL","BIOETHANOL.STCHANAT"]
[null,"(=)","Inland Consumption (Calculated)",{"$f":"IFERROR(VLOOKUP(J71&REPT(\" \",18-LEN(I71)-LEN(H71)),Data!A:B,2,FALSE),\"\")","v":""},{"$f":"E67+E68-E69+E70","v":0},null,null,"INDCONC","BIOETHANOL","BIOETHANOL.INDCONC"]
[null,"Biodiesels (thousand metric tons)",null,null,null,null,null,null,null,{"$f":"IF(H72=0, \"\",CONCATENATE(I72,\".\",H72))","v":""}]
[null,"(+)","Indigenous Production",{"$f":"IFERROR(VLOOKUP(J73&REPT(\" \",18-LEN(I73)-LEN(H73)),Data!A:B,2,FALSE),\"\")","v":""},0,null,null,"INDPROD","BIODIESEL","BIODIESEL.INDPROD"]
[null,"(+)","Total Imports (Balance)",{"$f":"IFERROR(VLOOKUP(J74&REPT(\" \",18-LEN(I74)-LEN(H74)),Data!A:B,2,FALSE),\"\")","v":""},0,null,null,"TOTIMPSB","BIODIESEL","BIODIESEL.TOTIMPSB"]
[null,"(-)","Total Exports (Balance)",{"$f":"IFERROR(VLOOKUP(J75&REPT(\" \",18-LEN(I75)-LEN(H75)),Data!A:B,2,FALSE),\"\")","v":""},0,null,null,"TOTEXPSB","BIODIESEL","BIODIESEL.TOTEXPSB"]
[null,"(+/-)","Stock Changes (National Territory)",{"$f":"IFERROR(VLOOKUP(J76&REPT(\" \",18-LEN(I76)-LEN(H76)),Data!A:B,2,FALSE),\"\")","v":""},0,null,null,"STCHANAT","BIODIESEL","BIODIESEL.STCHANAT"]
[null,"(=)","Inland Consumption (Calculated)",{"$f":"IFERROR(VLOOKUP(J77&REPT(\" \",18-LEN(I77)-LEN(H77)),Data!A:B,2,FALSE),\"\")","v":""},{"$f":"E73+E74-E75+E76","v":0},null,null,"INDCONC","BIODIESEL","BIODIESEL.INDCONC"]
[null,"Bio Jet Kerosene (thousand metric tons)"]
[null,"(+)","Indigenous Production",{"$f":"IFERROR(VLOOKUP(J79&REPT(\" \",18-LEN(I79)-LEN(H79)),Data!A:B,2,FALSE),\"\")","v":""},0,null,null,"INDPROD","BIOJETKERO",{"$f":"IF(H79=0, \"\",CONCATENATE(I79,\".\",H79))","v":"BIOJETKERO.INDPROD"}]
[null,"(+)","Total Imports (Balance)",{"$f":"IFERROR(VLOOKUP(J80&REPT(\" \",18-LEN(I80)-LEN(H80)),Data!A:B,2,FALSE),\"\")","v":""},0,null,null,"TOTIMPSB","BIOJETKERO","BIOJETKERO.TOTIMPSB"]
[null,"(-)","Total Exports (Balance)",{"$f":"IFERROR(VLOOKUP(J81&REPT(\" \",18-LEN(I81)-LEN(H81)),Data!A:B,2,FALSE),\"\")","v":""},0,null,null,"TOTEXPSB","BIOJETKERO","BIOJETKERO.TOTEXPSB"]
[null,"(+/-)","Stock Changes (National Territory)",{"$f":"IFERROR(VLOOKUP(J82&REPT(\" \",18-LEN(I82)-LEN(H82)),Data!A:B,2,FALSE),\"\")","v":""},0,null,null,"STCHANAT","BIOJETKERO","BIOJETKERO.STCHANAT"]
[null,"(=)","Inland Consumption (Calculated)",{"$f":"IFERROR(VLOOKUP(J83&REPT(\" \",18-LEN(I83)-LEN(H83)),Data!A:B,2,FALSE),\"\")","v":""},{"$f":"E79+E80-E81+E82","v":0},null,null,"INDCONC","BIOJETKERO","BIOJETKERO.INDCONC"]
[null,"Other Liquid Biofuels (thousand metric tons)",null,null,null,null,null,null,null,""]
[null,"(+)","Indigenous Production",{"$f":"IFERROR(VLOOKUP(J85&REPT(\" \",18-LEN(I85)-LEN(H85)),Data!A:B,2,FALSE),\"\")","v":""},0,null,null,"INDPROD","OBIOLIQ","OBIOLIQ.INDPROD"]
[null,"(+)","Total Imports (Balance)",{"$f":"IFERROR(VLOOKUP(J86&REPT(\" \",18-LEN(I86)-LEN(H86)),Data!A:B,2,FALSE),\"\")","v":""},0,null,null,"TOTIMPSB","OBIOLIQ","OBIOLIQ.TOTIMPSB"]
[null,"(-)","Total Exports (Balance)",{"$f":"IFERROR(VLOOKUP(J87&REPT(\" \",18-LEN(I87)-LEN(H87)),Data!A:B,2,FALSE),\"\")","v":""},0,null,null,"TOTEXPSB","OBIOLIQ","OBIOLIQ.TOTEXPSB"]
[null,"(+/-)","Stock Changes (National Territory)",{"$f":"IFERROR(VLOOKUP(J88&REPT(\" \",18-LEN(I88)-LEN(H88)),Data!A:B,2,FALSE),\"\")","v":""},0,null,null,"STCHANAT","OBIOLIQ","OBIOLIQ.STCHANAT"]
[null,"(=)","Inland Consumption (Calculated)",{"$f":"IFERROR(VLOOKUP(J89&REPT(\" \",18-LEN(I89)-LEN(H89)),Data!A:B,2,FALSE),\"\")","v":""},{"$f":"E85+E86-E87+E88","v":0},null,null,"INDCONC","OBIOLIQ","OBIOLIQ.INDCONC"]

{"sheet":"Table","index":2,"n_rows":290,"n_cols":54,"rows_kept":290,"cut":false,"hidden":false,"merged":[[2,5,2,44],[34,18,34,20],[9,39,9,41],[9,42,9,44],[33,18,33,20],[9,21,9,23],[9,24,9,26],[9,27,9,29],[9,30,9,32],[9,33,9,35],[9,36,9,38],[33,5,35,5],[33,6,33,8],[33,9,33,11],[33,12,33,14],[33,15,33,17],[34,6,34,8],[34,9,34,11],[34,12,34,14],[34,15,34,17],[8,30,8,32],[8,39,8,41],[8,42,8,44],[9,6,9,8],[9,9,9,11],[9,12,9,14],[9,15,9,17],[9,18,9,20],[8,27,8,29],[3,5,3,44],[7,5,10,5],[7,6,7,14],[7,15,7,20],[7,21,7,26],[7,27,7,29],[7,30,7,44],[8,6,8,8],[8,9,8,11],[8,12,8,14],[8,15,8,17],[8,18,8,20],[8,21,8,23],[8,24,8,26],[8,33,8,35],[8,36,8,38]]}
[]
[]
[null,null,null,null,null,"Renewables and Wastes Mini-Questionnaire"]
[null,null,null,null,null,{"$f":"DataCountry","v":0}]
[]
[null,null,null,null,null,"PRODUCT →","GEOTHERM","GEOTHERM",null,"SOLARTH","SOLARTH",null,"INDWASTE","INDWASTE",null,"MUNWASTER","MUNWASTER",null,"MUNWASTEN","MUNWASTEN",null,"PRIMSBIO","PRIMSBIO",null,"CHARCOAL","CHARCOAL",null,"BIOGASES","BIOGASES",null,"BIOGASOL","BIOGASOL",null,"BIOETHANOL","BIOETHANOL",null,"BIOJETKERO","BIOJETKERO",null,"BIODIESEL","BIODIESEL",null,"OBIOLIQ","OBIOLIQ"]
[null,null,null,null,null,null,2,2,null,3,3,null,4,4,null,5,5,null,6,6,null,7,7,null,8,8,null,9,9,null,10,10,null,11,11,null,12,12,null,13,13,null,14,14]
[null,null,null,null,null,"Table 1 of 2:\nMini Balance",null,null,null,null,null,null,null,null,null,"Municipal Wastes",null,null,null,null,null,"Solid Biofuels",null,null,null,null,null,"Biogases",null,null,"Liquid Biofuels"]
[null,null,"↓",null,null,null,"Geothermal energy",null,null,"Solar Thermal",null,null,"Industrial waste\n(non-renewable)",null,null,"Renewable",null,null,"Non-renewable",null,null,"Solid biofuels\nexcluding charcoal",null,null,"Charcoal",null,null,"Biogases\n(In Table 2, a + b + c + d)",null,null,"Biogasoline",null,null,"Of which bioethanol",null,null,"Bio jet kerosenes",null,null,"Biodiesels",null,null,"Other liquid biofuels"]
[null,null,"BALANCE",null,null,null,"TJ (NCV)",null,null,"TJ (NCV)",null,null,"TJ (NCV)",null,null,"TJ (NCV)",null,null,"TJ (NCV)",null,null,"TJ (NCV)",null,null,"kt",null,null,"TJ (NCV)",null,null,"kt",null,null,"kt",null,null,"kt",null,null,"kt",null,null,"kt"]
[null,null,null,null,null,null,{"$f":"DataYear","v":0},{"$f":"DataYear+1&\"E\"","v":"1E"},"% change",{"$f":"DataYear","v":0},{"$f":"H11","v":"1E"},"% change",{"$f":"DataYear","v":0},{"$f":"K11","v":"1E"},"% change",{"$f":"DataYear","v":0},{"$f":"N11","v":"1E"},{"$f":"O11","v":"% change"},{"$f":"DataYear","v":0},{"$f":"Q11","v":"1E"},"% change",{"$f":"DataYear","v":0},{"$f":"H11","v":"1E"},{"$f":"U11","v":"% change"},{"$f":"DataYear","v":0},{"$f":"W11","v":"1E"},{"$f":"X11","v":"% change"},{"$f":"DataYear","v":0},{"$f":"Z11","v":"1E"},{"$f":"AA11","v":"% change"},{"$f":"DataYear","v":0},{"$f":"AC11","v":"1E"},{"$f":"AD11","v":"% change"},{"$f":"DataYear","v":0},{"$f":"AF11","v":"1E"},{"$f":"AG11","v":"% change"},{"$f":"DataYear","v":0},{"$f":"AI11","v":"1E"},{"$f":"AJ11","v":"% change"},{"$f":"DataYear","v":0},{"$f":"AL11","v":"1E"},{"$f":"AM11","v":"% change"},{"$f":"DataYear","v":0},{"$f":"AO11","v":"1E"},"% change"]
[null,5,"INDPROD",null,null,"Indigenous production",{"$f":"Data!B5","v":0},0,{"$f":"IF(G12 = 0,\"n/a\", H12/G12-1)","v":"n/a"},{"$f":"Data!C5","v":0},0,{"$f":"IF(J12 = 0,\"n/a\", K12/J12-1)","v":"n/a"},{"$f":"Data!D5","v":0},0,{"$f":"IF(M12 = 0,\"n/a\", N12/M12-1)","v":"n/a"},{"$f":"Data!E5","v":0},0,{"$f":"IF(P12 = 0,\"n/a\", Q12/P12-1)","v":"n/a"},{"$f":"Data!F5","v":0},0,{"$f":"IF(S12 = 0,\"n/a\", T12/S12-1)","v":"n/a"},{"$f":"Data!G5","v":0},0,{"$f":"IF(V12 = 0,\"n/a\", W12/V12-1)","v":"n/a"},{"$f":"Data!H5","v":0},0,{"$f":"IF(Y12 = 0,\"n/a\", Z12/Y12-1)","v":"n/a"},{"$f":"Data!I5","v":0},0,{"$f":"IF(AB12 = 0,\"n/a\", AC12/AB12-1)","v":"n/a"},{"$f":"Data!J5","v":0},0,{"$f":"IF(AE12 = 0,\"n/a\", AF12/AE12-1)","v":"n/a"},{"$f":"Data!K5","v":0},0,{"$f":"IF(AH12 = 0,\"n/a\", AI12/AH12-1)","v":"n/a"},{"$f":"Data!L5","v":0},0,{"$f":"IF(AK12 = 0,\"n/a\", AL12/AK12-1)","v":"n/a"},{"$f":"Data!M5","v":0},0,{"$f":"IF(AN12 = 0,\"n/a\", AO12/AN12-1)","v":"n/a"},{"$f":"Data!N5","v":0},0,{"$f":"IF(AQ12 = 0,\"n/a\", AR12/AQ12-1)","v":"n/a"}]
[null,6,"TOTIMPSB",null,null,"(+) Total imports (balance)",{"$f":"Data!B6","v":0},0,"n/a",{"$f":"Data!C6","v":0},0,"n/a",{"$f":"Data!D6","v":0},0,"n/a",{"$f":"Data!E6","v":0},0,"n/a",{"$f":"Data!F6","v":0},0,"n/a",{"$f":"Data!G6","v":0},0,"n/a",{"$f":"Data!H6","v":0},0,"n/a",{"$f":"Data!I6","v":0},0,"n/a",{"$f":"Data!J6","v":0},0,"n/a",{"$f":"Data!K6","v":0},0,"n/a",{"$f":"Data!L6","v":0},0,"n/a",{"$f":"Data!M6","v":0},0,"n/a",{"$f":"Data!N6","v":0},0,"n/a"]
[null,7,"TOTEXPSB",null,null,"(-) Total exports (balance)",{"$f":"Data!B7","v":0},0,"n/a",{"$f":"Data!C7","v":0},0,"n/a",{"$f":"Data!D7","v":0},0,"n/a",{"$f":"Data!E7","v":0},0,"n/a",{"$f":"Data!F7","v":0},0,"n/a",{"$f":"Data!G7","v":0},0,"n/a",{"$f":"Data!H7","v":0},0,"n/a",{"$f":"Data!I7","v":0},0,"n/a",{"$f":"Data!J7","v":0},0,"n/a",{"$f":"Data!K7","v":0},0,"n/a",{"$f":"Data!L7","v":0},0,"n/a",{"$f":"Data!M7","v":0},0,"n/a",{"$f":"Data!N7","v":0},0,"n/a"]
[null,8,"STCHANAT",null,null,"(+) Stock changes (national territory)",{"$f":"Data!B8","v":0},0,"n/a",{"$f":"Data!C8","v":0},0,"n/a",{"$f":"Data!D8","v":0},0,"n/a",{"$f":"Data!E8","v":0},0,"n/a",{"$f":"Data!F8","v":0},0,"n/a",{"$f":"Data!G8","v":0},0,"n/a",{"$f":"Data!H8","v":0},0,"n/a",{"$f":"Data!I8","v":0},0,"n/a",{"$f":"Data!J8","v":0},0,"n/a",{"$f":"Data!K8","v":0},0,"n/a",{"$f":"Data!L8","v":0},0,"n/a",{"$f":"Data!M8","v":0},0,"n/a",{"$f":"Data!N8","v":0},0,"n/a"]
[null,9,"INDCONC",null,null,"(=) Inland consumption (calculated)",{"$f":"Data!B9","v":0},{"$f":"ROUND(H12+H13-H14+H15,3)","v":0},"n/a",{"$f":"Data!C9","v":0},{"$f":"ROUND(K12+K13-K14+K15,3)","v":0},"n/a",{"$f":"Data!D9","v":0},{"$f":"ROUND(N12+N13-N14+N15,3)","v":0},"n/a",{"$f":"Data!E9","v":0},{"$f":"ROUND(Q12+Q13-Q14+Q15,3)","v":0},"n/a",{"$f":"Data!F9","v":0},{"$f":"ROUND(T12+T13-T14+T15,3)","v":0},"n/a",{"$f":"Data!G9","v":0},{"$f":"ROUND(W12+W13-W14+W15,3)","v":0},"n/a",{"$f":"Data!H9","v":0},{"$f":"ROUND(Z12+Z13-Z14+Z15,3)","v":0},"n/a",{"$f":"Data!I9","v":0},{"$f":"ROUND(AC12+AC13-AC14+AC15,3)","v":0},"n/a",{"$f":"Data!J9","v":0},{"$f":"ROUND(AF12+AF13-AF14+AF15,3)","v":0},"n/a",{"$f":"Data!K9","v":0},{"$f":"ROUND(AI12+AI13-AI14+AI15,3)","v":0},"n/a",{"$f":"Data!L9","v":0},{"$f":"ROUND(AL12+AL13-AL14+AL15,3)","v":0},"n/a",{"$f":"Data!M9","v":0},{"$f":"ROUND(AO12+AO13-AO14+AO15,3)","v":0},"n/a",{"$f":"Data!N9","v":0},{"$f":"ROUND(AR12+AR13-AR14+AR15,3)","v":0},"n/a"]
[null,10,"STATDIFF",null,null,"Statistical differences",{"$f":"Data!B10","v":0},{"$f":"ROUND(H16-H18-H22-H23-H25,3)","v":0},"n/a",{"$f":"Data!C10","v":0},{"$f":"ROUND(K16-K18-K22-K23-K25,3)","v":0},"n/a",{"$f":"Data!D10","v":0},{"$f":"ROUND(N16-N18-N22-N23-N25,3)","v":0},"n/a",{"$f":"Data!E10","v":0},{"$f":"ROUND(Q16-Q18-Q22-Q23-Q25,3)","v":0},"n/a",{"$f":"Data!F10","v":0},{"$f":"ROUND(T16-T18-T22-T23-T25,3)","v":0},"n/a",{"$f":"Data!G10","v":0},{"$f":"ROUND(W16-W18-W22-W23-W25,3)","v":0},"n/a",{"$f":"Data!H10","v":0},{"$f":"ROUND(Z16-Z18-Z22-Z23-Z25,3)","v":0},"n/a",{"$f":"Data!I10","v":0},{"$f":"ROUND(AC16-AC18-AC22-AC23-AC25,3)","v":0},"n/a",{"$f":"Data!J10","v":0},{"$f":"ROUND(AF16-AF18-AF22-AF23-AF25,3)","v":0},"n/a",{"$f":"Data!K10","v":0},{"$f":"ROUND(AI16-AI18-AI22-AI23-AI25,3)","v":0},"n/a",{"$f":"Data!L10","v":0},{"$f":"ROUND(AL16-AL18-AL22-AL23-AL25,3)","v":0},"n/a",{"$f":"Data!M10","v":0},{"$f":"ROUND(AO16-AO18-AO22-AO23-AO25,3)","v":0},"n/a",{"$f":"Data!N10","v":0},{"$f":"ROUND(AR16-AR18-AR22-AR23-AR25,3)","v":0},"n/a"]
[null,11,"TOTTRANF",null,null,"Transformation sector",{"$f":"Data!B11","v":0},0,"n/a",{"$f":"Data!C11","v":0},0,"n/a",{"$f":"Data!D11","v":0},0,"n/a",{"$f":"Data!E11","v":0},0,"n/a",{"$f":"Data!F11","v":0},0,"n/a",{"$f":"Data!G11","v":0},0,"n/a",{"$f":"Data!H11","v":0},0,"n/a",{"$f":"Data!I11","v":0},0,"n/a",{"$f":"Data!J11","v":0},0,"n/a",{"$f":"Data!K11","v":0},0,"n/a",{"$f":"Data!L11","v":0},0,"n/a",{"$f":"Data!M11","v":0},0,"n/a",{"$f":"Data!N11","v":0},0,"n/a"]
[null,12,"MTOELEHEAT",null,null,"of which: input to electricity and heat plants",{"$f":"Data!B12","v":0},0,"n/a",{"$f":"Data!C12","v":0},0,"n/a",{"$f":"Data!D12","v":0},0,"n/a",{"$f":"Data!E12","v":0},0,"n/a",{"$f":"Data!F12","v":0},0,"n/a",{"$f":"Data!G12","v":0},0,"n/a",{"$f":"Data!H12","v":0},0,"n/a",{"$f":"Data!I12","v":0},0,"n/a",{"$f":"Data!J12","v":0},0,"n/a",{"$f":"Data!K12","v":0},0,"n/a",{"$f":"Data!L12","v":0},0,"n/a",{"$f":"Data!M12","v":0},0,"n/a",{"$f":"Data!N12","v":0},0,"n/a"]
[null,13,"TBLENDGAS",null,null,"of which: natural gas blending plants",{"$f":"Data!B13","v":0},0,"n/a",{"$f":"Data!C13","v":0},0,"n/a",{"$f":"Data!D13","v":0},0,"n/a",{"$f":"Data!E13","v":0},0,"n/a",{"$f":"Data!F13","v":0},0,"n/a",{"$f":"Data!G13","v":0},0,"n/a",{"$f":"Data!H13","v":0},0,null,{"$f":"Data!I13","v":0},0,"n/a",{"$f":"Data!J13","v":0},0,"n/a",{"$f":"Data!K13","v":0},0,"n/a",{"$f":"Data!L13","v":0},0,"n/a",{"$f":"Data!M13","v":0},0,"n/a",{"$f":"Data!N13","v":0},0,"n/a"]
[null,14,"TBLENDOIL",null,null,"of which: for blending with motor gasoline/diesel/kerosene",{"$f":"Data!B14","v":0},0,"n/a",{"$f":"Data!C14","v":0},0,"n/a",{"$f":"Data!D14","v":0},0,"n/a",{"$f":"Data!E14","v":0},0,"n/a",{"$f":"Data!F14","v":0},0,"n/a",{"$f":"Data!G14","v":0},0,"n/a",{"$f":"Data!H14","v":0},0,"n/a",{"$f":"Data!I14","v":0},0,"n/a",{"$f":"Data!J14","v":0},0,"n/a",{"$f":"Data!K14","v":0},0,"n/a",{"$f":"Data!L14","v":0},0,"n/a",{"$f":"Data!M14","v":0},0,"n/a",{"$f":"Data!N14","v":0},0,"n/a"]
[null,15,"TOTENGY",null,null,"Energy sector",{"$f":"Data!B15","v":0},0,"n/a",{"$f":"Data!C15","v":0},0,"n/a",{"$f":"Data!D15","v":0},0,"n/a",{"$f":"Data!E15","v":0},0,"n/a",{"$f":"Data!F15","v":0},0,"n/a",{"$f":"Data!G15","v":0},0,"n/a",{"$f":"Data!H15","v":0},0,"n/a",{"$f":"Data!I15","v":0},0,"n/a",{"$f":"Data!J15","v":0},0,"n/a",{"$f":"Data!K15","v":0},0,"n/a",{"$f":"Data!L15","v":0},0,"n/a",{"$f":"Data!M15","v":0},0,"n/a",{"$f":"Data!N15","v":0},0,"n/a"]
[null,16,"DISTLOSS",null,null,"Distribution losses",{"$f":"Data!B16","v":0},0,"n/a",{"$f":"Data!C16","v":0},0,"n/a",{"$f":"Data!D16","v":0},0,"n/a",{"$f":"Data!E16","v":0},0,"n/a",{"$f":"Data!F16","v":0},0,"n/a",{"$f":"Data!G16","v":0},0,"n/a",{"$f":"Data!H16","v":0},0,"n/a",{"$f":"Data!I16","v":0},0,"n/a",{"$f":"Data!J16","v":0},0,"n/a",{"$f":"Data!K16","v":0},0,"n/a",{"$f":"Data!L16","v":0},0,"n/a",{"$f":"Data!M16","v":0},0,"n/a",{"$f":"Data!N16","v":0},0,"n/a"]
[null,17,"FINCONS",null,null,"Total final consumption",{"$f":"G16-G17-G18-G22-G23","v":0},{"$f":"H16-H17-H18-H22-H23","v":0},"n/a",{"$f":"J16-J17-J18-J22-J23","v":0},{"$f":"K16-K17-K18-K22-K23","v":0},"n/a",{"$f":"M16-M17-M18-M22-M23","v":0},{"$f":"N16-N17-N18-N22-N23","v":0},"n/a",{"$f":"P16-P17-P18-P22-P23","v":0},{"$f":"Q16-Q17-Q18-Q22-Q23","v":0},"n/a",{"$f":"S16-S17-S18-S22-S23","v":0},{"$f":"T16-T17-T18-T22-T23","v":0},"n/a",{"$f":"V16-V17-V18-V22-V23","v":0},{"$f":"W16-W17-W18-W22-W23","v":0},"n/a",{"$f":"Y16-Y17-Y18-Y22-Y23","v":0},{"$f":"Z16-Z17-Z18-Z22-Z23","v":0},"n/a",{"$f":"AB16-AB17-AB18-AB22-AB23","v":0},{"$f":"AC16-AC17-AC18-AC22-AC23","v":0},"n/a",{"$f":"AE16-AE17-AE18-AE22-AE23","v":0},{"$f":"AF16-AF17-AF18-AF22-AF23","v":0},"n/a",{"$f":"AH16-AH17-AH18-AH22-AH23","v":0},{"$f":"AI16-AI17-AI18-AI22-AI23","v":0},"n/a",{"$f":"AK16-AK17-AK18-AK22-AK23","v":0},{"$f":"AL16-AL17-AL18-AL22-AL23","v":0},"n/a",{"$f":"AN16-AN17-AN18-AN22-AN23","v":0},{"$f":"AO16-AO17-AO18-AO22-AO23","v":0},"n/a",{"$f":"AQ16-AQ17-AQ18-AQ22-AQ23","v":0},{"$f":"AR16-AR17-AR18-AR22-AR23","v":0},"n/a"]
[null,18,"FINECONS",null,null,"Final energy consumption",{"$f":"G26+G27+G28","v":0},{"$f":"H26+H27+H28","v":0},"n/a",{"$f":"J26+J27+J28","v":0},{"$f":"K26+K27+K28","v":0},"n/a",{"$f":"M26+M27+M28","v":0},{"$f":"N26+N27+N28","v":0},"n/a",{"$f":"P26+P27+P28","v":0},{"$f":"Q26+Q27+Q28","v":0},"n/a",{"$f":"S26+S27+S28","v":0},{"$f":"T26+T27+T28","v":0},"n/a",{"$f":"V26+V27+V28","v":0},{"$f":"W26+W27+W28","v":0},"n/a",{"$f":"Y26+Y27+Y28","v":0},{"$f":"Z26+Z27+Z28","v":0},"n/a",{"$f":"AB26+AB27+AB28","v":0},{"$f":"AC26+AC27+AC28","v":0},"n/a",{"$f":"AE26+AE27+AE28","v":0},{"$f":"AF26+AF27+AF28","v":0},"n/a",{"$f":"AH26+AH27+AH28","v":0},{"$f":"AI26+AI27+AI28","v":0},"n/a",{"$f":"AK26+AK27+AK28","v":0},{"$f":"AL26+AL27+AL28","v":0},"n/a",{"$f":"AN26+AN27+AN28","v":0},{"$f":"AO26+AO27+AO28","v":0},"n/a",{"$f":"AQ26+AQ27+AQ28","v":0},{"$f":"AR26+AR27+AR28","v":0},"n/a"]
[null,19,"TOTIND",null,null,"Industry sector",{"$f":"Data!B19","v":0},0,"n/a",{"$f":"Data!C19","v":0},0,"n/a",{"$f":"Data!D19","v":0},0,"n/a",{"$f":"Data!E19","v":0},0,"n/a",{"$f":"Data!F19","v":0},0,"n/a",{"$f":"Data!G19","v":0},0,"n/a",{"$f":"Data!H19","v":0},0,"n/a",{"$f":"Data!I19","v":0},0,"n/a",{"$f":"Data!J19","v":0},0,"n/a",{"$f":"Data!K19","v":0},0,"n/a",{"$f":"Data!L19","v":0},0,"n/a",{"$f":"Data!M19","v":0},0,"n/a",{"$f":"Data!N19","v":0},0,"n/a"]
[null,20,"TOTTRANS",null,null,"Transport sector",{"$f":"Data!B20","v":0},0,"n/a",{"$f":"Data!C20","v":0},0,"n/a",{"$f":"Data!D20","v":0},0,"n/a",{"$f":"Data!E20","v":0},0,"n/a",{"$f":"Data!F20","v":0},0,"n/a",{"$f":"Data!G20","v":0},0,"n/a",{"$f":"Data!H20","v":0},0,"n/a",{"$f":"Data!I20","v":0},0,"n/a",{"$f":"Data!J20","v":0},0,"n/a",{"$f":"Data!K20","v":0},0,"n/a",{"$f":"Data!L20","v":0},0,"n/a",{"$f":"Data!M20","v":0},0,"n/a",{"$f":"Data!N20","v":0},0,"n/a"]
[null,21,"TOTOTHER",null,null,"Other sectors",{"$f":"Data!B21","v":0},0,"n/a",{"$f":"Data!C21","v":0},0,"n/a",{"$f":"Data!D21","v":0},0,"n/a",{"$f":"Data!E21","v":0},0,"n/a",{"$f":"Data!F21","v":0},0,"n/a",{"$f":"Data!G21","v":0},0,"n/a",{"$f":"Data!H21","v":0},0,"n/a",{"$f":"Data!I21","v":0},0,"n/a",{"$f":"Data!J21","v":0},0,"n/a",{"$f":"Data!K21","v":0},0,"n/a",{"$f":"Data!L21","v":0},0,"n/a",{"$f":"Data!M21","v":0},0,"n/a",{"$f":"Data!N21","v":0},0,"n/a"]
[null,22,"COMMPUB",null,null,"of which: commercial and public services",{"$f":"Data!B22","v":0},0,"n/a",{"$f":"Data!C22","v":0},0,"n/a",{"$f":"Data!D22","v":0},0,"n/a",{"$f":"Data!E22","v":0},0,"n/a",{"$f":"Data!F22","v":0},0,"n/a",{"$f":"Data!G22","v":0},0,"n/a",{"$f":"Data!H22","v":0},0,"n/a",{"$f":"Data!I22","v":0},0,"n/a",{"$f":"Data!J22","v":0},0,"n/a",{"$f":"Data!K22","v":0},0,"n/a",{"$f":"Data!L22","v":0},0,"n/a",{"$f":"Data!M22","v":0},0,"n/a",{"$f":"Data!N22","v":0},0,"n/a"]
[null,23,"RESIDENT",null,null,"of which: residential",{"$f":"Data!B23","v":0},0,"n/a",{"$f":"Data!C23","v":0},0,"n/a",{"$f":"Data!D23","v":0},0,"n/a",{"$f":"Data!E23","v":0},0,"n/a",{"$f":"Data!F23","v":0},0,"n/a",{"$f":"Data!G23","v":0},0,"n/a",{"$f":"Data!H23","v":0},0,"n/a",{"$f":"Data!I23","v":0},0,"n/a",{"$f":"Data!J23","v":0},0,"n/a",{"$f":"Data!K23","v":0},0,"n/a",{"$f":"Data!L23","v":0},0,"n/a",{"$f":"Data!M23","v":0},0,"n/a",{"$f":"Data!N23","v":0},0,"n/a"]
[null,null,null,null,null,null,null,0]
[null,null,null,null,null,null,null,null,null,15,15,null,16,16,null,17,17,null,18,18]
[null,"Item 2",null,null,null,"PRODUCT →",null,null,null,"LANDFILL","LANDFILL",null,"SLUDGEGS","SLUDGEGS",null,"OBIOGAS","OBIOGAS",null,"BGTHERM","BGTHERM"]
[null,null,null,null,null,"Table 2 of 2:\nBiogases","Biogases                                                        (copied from Table 1)",null,null,"(a) Landfill Gas",null,null,"(b) Sewage Sludge Gas",null,null,"(c) Other Biogases from\nAnaerobic Fermentation",null,null,"(d) Biogases from\nThermal Processes"]
[null,null,"BALANCE ↓",null,null,null,"TJ (NCV)",null,null,"TJ (NCV)",null,null,"TJ (NCV)",null,null,"TJ (NCV)",null,null,"TJ (NCV)"]
[null,null,null,null,null,null,{"$f":"DataYear","v":0},{"$f":"DataYear+1&\"E\"","v":"1E"},"% change",{"$f":"DataYear","v":0},{"$f":"DataYear+1&\"E\"","v":"1E"},"% change",{"$f":"DataYear","v":0},{"$f":"DataYear+1&\"E\"","v":"1E"},"% change",{"$f":"DataYear","v":0},{"$f":"DataYear+1&\"E\"","v":"1E"},"% change",{"$f":"DataYear","v":0},{"$f":"DataYear+1&\"E\"","v":"1E"},"% change"]
[null,1,"INDPROD",null,null,"Indigenous production",{"$f":"AB12","v":0},{"$f":"AC12","v":0},{"$f":"AD12","v":"n/a"},{"$f":"Data!O5","v":0},0,{"$f":"IF(J37 = 0,\"n/a\", K37/J37-1)","v":"n/a"},{"$f":"Data!P5","v":0},0,{"$f":"IF(M37 = 0,\"n/a\", N37/M37-1)","v":"n/a"},{"$f":"Data!Q5","v":0},0,{"$f":"IF(P37 = 0,\"n/a\", Q37/P37-1)","v":"n/a"},{"$f":"Data!R5","v":0},0,{"$f":"IF(S37 = 0,\"n/a\", T37/S37-1)","v":"n/a"}]
[]
[null,null,null,null,null,null,null,null,null,null,null,null,null,null,null,null,null,null,null,null,null,null,null,null,null,null,null,null,null,null,null,null,null,null,null,null,null,null,null,null,null,null,null,null,null,null,null,null,null,"Item1","Product","Concatenated"]
[null,null,null,null,null,null,null,null,null,null,null,null,null,null,null,null,null,null,null,null,null,null,null,null,null,null,null,null,null,null,null,null,null,null,null,null,null,null,null,null,null,null,null,null,null,null,null,null,null,"INDPROD","GEOTHERM","GEOTHERM.INDPROD",0,{"$f":"BA40","v":0}]
[null,null,null,null,null,null,null,null,null,null,null,null,null,null,null,null,null,null,null,null,null,null,null,null,null,null,null,null,null,null,null,null,null,null,null,null,null,null,null,null,null,null,null,null,null,null,null,null,null,"TOTIMPSB","GEOTHERM","GEOTHERM.TOTIMPSB",0,{"$f":"BA41","v":0}]
[null,null,null,null,null,null,null,null,null,null,null,null,null,null,null,null,null,null,null,null,null,null,null,null,null,null,null,null,null,null,null,null,null,null,null,null,null,null,null,null,null,null,null,null,null,null,null,null,null,"TOTEXPSB","GEOTHERM","GEOTHERM.TOTEXPSB",0,0]
[null,null,null,null,null,null,null,null,null,null,null,null,null,null,null,null,null,null,null,null,null,null,null,null,null,null,null,null,null,null,null,null,null,null,null,null,null,null,null,null,null,null,null,null,null,null,null,null,null,"STCHANAT","GEOTHERM","GEOTHERM.STCHANAT",0,0]
[null,null,null,null,null,null,null,null,null,null,null,null,null,null,null,null,null,null,null,null,null,null,null,null,null,null,null,null,null,null,null,null,null,null,null,null,null,null,null,null,null,null,null,null,null,null,null,null,null,"INDCONC","GEOTHERM","GEOTHERM.INDCONC",0]
[null,null,null,null,null,null,null,null,null,null,null,null,null,null,null,null,null,null,null,null,null,null,null,null,null,null,null,null,null,null,null,null,null,null,null,null,null,null,null,null,null,null,null,null,null,null,null,null,null,"STATDIFF","GEOTHERM","GEOTHERM.STATDIFF",0]
[null,null,null,null,null,null,null,null,null,null,null,null,null,null,null,null,null,null,null,null,null,null,null,null,null,null,null,null,null,null,null,null,null,null,null,null,null,null,null,null,null,null,null,null,null,null,null,null,null,"TOTTRANF","GEOTHERM","GEOTHERM.TOTTRANF",0,0]
[null,null,null,null,null,null,null,null,null,null,null,null,null,null,null,null,null,null,null,null,null,null,null,null,null,null,null,null,null,null,null,null,null,null,null,null,null,null,null,null,null,null,null,null,null,null,null,null,null,"MTOELEHEAT","GEOTHERM","GEOTHERM.MTOELEHEAT",0,0]
[null,null,null,null,null,null,null,null,null,null,null,null,null,null,null,null,null,null,null,null,null,null,null,null,null,null,null,null,null,null,null,null,null,null,null,null,null,null,null,null,null,null,null,null,null,null,null,null,null,"TBLENDGAS","GEOTHERM","GEOTHERM.TBLENDGAS",0,0]
[null,null,null,null,null,null,null,null,null,null,null,null,null,null,null,null,null,null,null,null,null,null,null,null,null,null,null,null,null,null,null,null,null,null,null,null,null,null,null,null,null,null,null,null,null,null,null,null,null,"TBLENDOIL","GEOTHERM","GEOTHERM.TBLENDOIL",0,0]
[null,null,null,null,null,null,null,null,null,null,null,null,null,null,null,null,null,null,null,null,null,null,null,null,null,null,null,null,null,null,null,null,null,null,null,null,null,null,null,null,null,null,null,null,null,null,null,null,null,"TOTENGY","GEOTHERM","GEOTHERM.TOTENGY",0,0]
[null,null,null,null,null,null,null,null,null,null,null,null,null,null,null,null,null,null,null,null,null,null,null,null,null,null,null,null,null,null,null,null,null,null,null,null,null,null,null,null,null,null,null,null,null,null,null,null,null,"DISTLOSS","GEOTHERM","GEOTHERM.DISTLOSS",0,0]
[null,null,null,null,null,null,null,null,null,null,null,null,null,null,null,null,null,null,null,null,null,null,null,null,null,null,null,null,null,null,null,null,null,null,null,null,null,null,null,null,null,null,null,null,null,null,null,null,null,"FINCONS","GEOTHERM","GEOTHERM.FINCONS",0]
[null,null,null,null,null,null,null,null,null,null,null,null,null,null,null,null,null,null,null,null,null,null,null,null,null,null,null,null,null,null,null,null,null,null,null,null,null,null,null,null,null,null,null,null,null,null,null,null,null,"FINECONS","GEOTHERM","GEOTHERM.FINECONS",0]
[null,null,null,null,null,null,null,null,null,null,null,null,null,null,null,null,null,null,null,null,null,null,null,null,null,null,null,null,null,null,null,null,null,null,null,null,null,null,null,null,null,null,null,null,null,null,null,null,null,"TOTIND","GEOTHERM","GEOTHERM.TOTIND",0,0]
[null,null,null,null,null,null,null,null,null,null,null,null,null,null,null,null,null,null,null,null,null,null,null,null,null,null,null,null,null,null,null,null,null,null,null,null,null,null,null,null,null,null,null,null,null,null,null,null,null,"TOTTRANS","GEOTHERM","GEOTHERM.TOTTRANS",0,0]
[null,null,null,null,null,null,null,null,null,null,null,null,null,null,null,null,null,null,null,null,null,null,null,null,null,null,null,null,null,null,null,null,null,null,null,null,null,null,null,null,null,null,null,null,null,null,null,null,null,"TOTOTHER","GEOTHERM","GEOTHERM.TOTOTHER",0,0]
[null,null,null,null,null,null,null,null,null,null,null,null,null,null,null,null,null,null,null,null,null,null,null,null,null,null,null,null,null,null,null,null,null,null,null,null,null,null,null,null,null,null,null,null,null,null,null,null,null,"COMMPUB","GEOTHERM","GEOTHERM.COMMPUB",0,0]
[null,null,null,null,null,null,null,null,null,null,null,null,null,null,null,null,null,null,null,null,null,null,null,null,null,null,null,null,null,null,null,null,null,null,null,null,null,null,null,null,null,null,null,null,null,null,null,null,null,"RESIDENT","GEOTHERM","GEOTHERM.RESIDENT",0,0]
[null,null,null,null,null,null,null,null,null,null,null,null,null,null,null,null,null,null,null,null,null,null,null,null,null,null,null,null,null,null,null,null,null,null,null,null,null,null,null,null,null,null,null,null,null,null,null,null,null,"INDPROD","SOLARTH","SOLARTH.INDPROD",0,{"$f":"BA59","v":0}]
[null,null,null,null,null,null,null,null,null,null,null,null,null,null,null,null,null,null,null,null,null,null,null,null,null,null,null,null,null,null,null,null,null,null,null,null,null,null,null,null,null,null,null,null,null,null,null,null,null,"TOTIMPSB","SOLARTH","SOLARTH.TOTIMPSB",0,0]
[null,null,null,null,null,null,null,null,null,null,null,null,null,null,null,null,null,null,null,null,null,null,null,null,null,null,null,null,null,null,null,null,null,null,null,null,null,null,null,null,null,null,null,null,null,null,null,null,null,"TOTEXPSB","SOLARTH","SOLARTH.TOTEXPSB",0,0]
[null,null,null,null,null,null,null,null,null,null,null,null,null,null,null,null,null,null,null,null,null,null,null,null,null,null,null,null,null,null,null,null,null,null,null,null,null,null,null,null,null,null,null,null,null,null,null,null,null,"STCHANAT","SOLARTH","SOLARTH.STCHANAT",0,0]
[null,null,null,null,null,null,null,null,null,null,null,null,null,null,null,null,null,null,null,null,null,null,null,null,null,null,null,null,null,null,null,null,null,null,null,null,null,null,null,null,null,null,null,null,null,null,null,null,null,"INDCONC","SOLARTH","SOLARTH.INDCONC",0]
[null,null,null,null,null,null,null,null,null,null,null,null,null,null,null,null,null,null,null,null,null,null,null,null,null,null,null,null,null,null,null,null,null,null,null,null,null,null,null,null,null,null,null,null,null,null,null,null,null,"STATDIFF","SOLARTH","SOLARTH.STATDIFF",0]
[null,null,null,null,null,null,null,null,null,null,null,null,null,null,null,null,null,null,null,null,null,null,null,null,null,null,null,null,null,null,null,null,null,null,null,null,null,null,null,null,null,null,null,null,null,null,null,null,null,"TOTTRANF","SOLARTH","SOLARTH.TOTTRANF",0,0]
[null,null,null,null,null,null,null,null,null,null,null,null,null,null,null,null,null,null,null,null,null,null,null,null,null,null,null,null,null,null,null,null,null,null,null,null,null,null,null,null,null,null,null,null,null,null,null,null,null,"MTOELEHEAT","SOLARTH","SOLARTH.MTOELEHEAT",0,0]
[null,null,null,null,null,null,null,null,null,null,null,null,null,null,null,null,null,null,null,null,null,null,null,null,null,null,null,null,null,null,null,null,null,null,null,null,null,null,null,null,null,null,null,null,null,null,null,null,null,"TBLENDGAS","SOLARTH","SOLARTH.TBLENDGAS",0,0]
[null,null,null,null,null,null,null,null,null,null,null,null,null,null,null,null,null,null,null,null,null,null,null,null,null,null,null,null,null,null,null,null,null,null,null,null,null,null,null,null,null,null,null,null,null,null,null,null,null,"TBLENDOIL","SOLARTH","SOLARTH.TBLENDOIL",0,0]
[null,null,null,null,null,null,null,null,null,null,null,null,null,null,null,null,null,null,null,null,null,null,null,null,null,null,null,null,null,null,null,null,null,null,null,null,null,null,null,null,null,null,null,null,null,null,null,null,null,"TOTENGY","SOLARTH","SOLARTH.TOTENGY",0,0]
[null,null,null,null,null,null,null,null,null,null,null,null,null,null,null,null,null,null,null,null,null,null,null,null,null,null,null,null,null,null,null,null,null,null,null,null,null,null,null,null,null,null,null,null,null,null,null,null,null,"DISTLOSS","SOLARTH","SOLARTH.DISTLOSS",0,0]
[null,null,null,null,null,null,null,null,null,null,null,null,null,null,null,null,null,null,null,null,null,null,null,null,null,null,null,null,null,null,null,null,null,null,null,null,null,null,null,null,null,null,null,null,null,null,null,null,null,"FINCONS","SOLARTH","SOLARTH.FINCONS",0]
[null,null,null,null,null,null,null,null,null,null,null,null,null,null,null,null,null,null,null,null,null,null,null,null,null,null,null,null,null,null,null,null,null,null,null,null,null,null,null,null,null,null,null,null,null,null,null,null,null,"FINECONS","SOLARTH","SOLARTH.FINECONS",0]
[null,null,null,null,null,null,null,null,null,null,null,null,null,null,null,null,null,null,null,null,null,null,null,null,null,null,null,null,null,null,null,null,null,null,null,null,null,null,null,null,null,null,null,null,null,null,null,null,null,"TOTIND","SOLARTH","SOLARTH.TOTIND",0,0]
[null,null,null,null,null,null,null,null,null,null,null,null,null,null,null,null,null,null,null,null,null,null,null,null,null,null,null,null,null,null,null,null,null,null,null,null,null,null,null,null,null,null,null,null,null,null,null,null,null,"TOTTRANS","SOLARTH","SOLARTH.TOTTRANS",0,0]
[null,null,null,null,null,null,null,null,null,null,null,null,null,null,null,null,null,null,null,null,null,null,null,null,null,null,null,null,null,null,null,null,null,null,null,null,null,null,null,null,null,null,null,null,null,null,null,null,null,"TOTOTHER","SOLARTH","SOLARTH.TOTOTHER",0,0]
[null,null,null,null,null,null,null,null,null,null,null,null,null,null,null,null,null,null,null,null,null,null,null,null,null,null,null,null,null,null,null,null,null,null,null,null,null,null,null,null,null,null,null,null,null,null,null,null,null,"COMMPUB","SOLARTH","SOLARTH.COMMPUB",0,0]
[null,null,null,null,null,null,null,null,null,null,null,null,null,null,null,null,null,null,null,null,null,null,null,null,null,null,null,null,null,null,null,null,null,null,null,null,null,null,null,null,null,null,null,null,null,null,null,null,null,"RESIDENT","SOLARTH","SOLARTH.RESIDENT",0,0]
[null,null,null,null,null,null,null,null,null,null,null,null,null,null,null,null,null,null,null,null,null,null,null,null,null,null,null,null,null,null,null,null,null,null,null,null,null,null,null,null,null,null,null,null,null,null,null,null,null,"INDPROD","INDWASTE","INDWASTE.INDPROD",0,0]
[null,null,null,null,null,null,null,null,null,null,null,null,null,null,null,null,null,null,null,null,null,null,null,null,null,null,null,null,null,null,null,null,null,null,null,null,null,null,null,null,null,null,null,null,null,null,null,null,null,"TOTIMPSB","INDWASTE","INDWASTE.TOTIMPSB",0,0]
[null,null,null,null,null,null,null,null,null,null,null,null,null,null,null,null,null,null,null,null,null,null,null,null,null,null,null,null,null,null,null,null,null,null,null,null,null,null,null,null,null,null,null,null,null,null,null,null,null,"TOTEXPSB","INDWASTE","INDWASTE.TOTEXPSB",0,0]
[null,null,null,null,null,null,null,null,null,null,null,null,null,null,null,null,null,null,null,null,null,null,null,null,null,null,null,null,null,null,null,null,null,null,null,null,null,null,null,null,null,null,null,null,null,null,null,null,null,"STCHANAT","INDWASTE","INDWASTE.STCHANAT",0,0]
[null,null,null,null,null,null,null,null,null,null,null,null,null,null,null,null,null,null,null,null,null,null,null,null,null,null,null,null,null,null,null,null,null,null,null,null,null,null,null,null,null,null,null,null,null,null,null,null,null,"INDCONC","INDWASTE","INDWASTE.INDCONC",0]
[null,null,null,null,null,null,null,null,null,null,null,null,null,null,null,null,null,null,null,null,null,null,null,null,null,null,null,null,null,null,null,null,null,null,null,null,null,null,null,null,null,null,null,null,null,null,null,null,null,"STATDIFF","INDWASTE","INDWASTE.STATDIFF",0]
[null,null,null,null,null,null,null,null,null,null,null,null,null,null,null,null,null,null,null,null,null,null,null,null,null,null,null,null,null,null,null,null,null,null,null,null,null,null,null,null,null,null,null,null,null,null,null,null,null,"TOTTRANF","INDWASTE","INDWASTE.TOTTRANF",0,0]
[null,null,null,null,null,null,null,null,null,null,null,null,null,null,null,null,null,null,null,null,null,null,null,null,null,null,null,null,null,null,null,null,null,null,null,null,null,null,null,null,null,null,null,null,null,null,null,null,null,"MTOELEHEAT","INDWASTE","INDWASTE.MTOELEHEAT",0,0]
[null,null,null,null,null,null,null,null,null,null,null,null,null,null,null,null,null,null,null,null,null,null,null,null,null,null,null,null,null,null,null,null,null,null,null,null,null,null,null,null,null,null,null,null,null,null,null,null,null,"TBLENDGAS","INDWASTE","INDWASTE.TBLENDGAS",0,0]
[null,null,null,null,null,null,null,null,null,null,null,null,null,null,null,null,null,null,null,null,null,null,null,null,null,null,null,null,null,null,null,null,null,null,null,null,null,null,null,null,null,null,null,null,null,null,null,null,null,"TBLENDOIL","INDWASTE","INDWASTE.TBLENDOIL",0,0]
[null,null,null,null,null,null,null,null,null,null,null,null,null,null,null,null,null,null,null,null,null,null,null,null,null,null,null,null,null,null,null,null,null,null,null,null,null,null,null,null,null,null,null,null,null,null,null,null,null,"TOTENGY","INDWASTE","INDWASTE.TOTENGY",0,0]
[null,null,null,null,null,null,null,null,null,null,null,null,null,null,null,null,null,null,null,null,null,null,null,null,null,null,null,null,null,null,null,null,null,null,null,null,null,null,null,null,null,null,null,null,null,null,null,null,null,"DISTLOSS","INDWASTE","INDWASTE.DISTLOSS",0,0]
[null,null,null,null,null,null,null,null,null,null,null,null,null,null,null,null,null,null,null,null,null,null,null,null,null,null,null,null,null,null,null,null,null,null,null,null,null,null,null,null,null,null,null,null,null,null,null,null,null,"FINCONS","INDWASTE","INDWASTE.FINCONS",0]
[null,null,null,null,null,null,null,null,null,null,null,null,null,null,null,null,null,null,null,null,null,null,null,null,null,null,null,null,null,null,null,null,null,null,null,null,null,null,null,null,null,null,null,null,null,null,null,null,null,"FINECONS","INDWASTE","INDWASTE.FINECONS",0]
[null,null,null,null,null,null,null,null,null,null,null,null,null,null,null,null,null,null,null,null,null,null,null,null,null,null,null,null,null,null,null,null,null,null,null,null,null,null,null,null,null,null,null,null,null,null,null,null,null,"TOTIND","INDWASTE","INDWASTE.TOTIND",0,0]
[null,null,null,null,null,null,null,null,null,null,null,null,null,null,null,null,null,null,null,null,null,null,null,null,null,null,null,null,null,null,null,null,null,null,null,null,null,null,null,null,null,null,null,null,null,null,null,null,null,"TOTTRANS","INDWASTE","INDWASTE.TOTTRANS",0,0]
[null,null,null,null,null,null,null,null,null,null,null,null,null,null,null,null,null,null,null,null,null,null,null,null,null,null,null,null,null,null,null,null,null,null,null,null,null,null,null,null,null,null,null,null,null,null,null,null,null,"TOTOTHER","INDWASTE","INDWASTE.TOTOTHER",0,0]
[null,null,null,null,null,null,null,null,null,null,null,null,null,null,null,null,null,null,null,null,null,null,null,null,null,null,null,null,null,null,null,null,null,null,null,null,null,null,null,null,null,null,null,null,null,null,null,null,null,"COMMPUB","INDWASTE","INDWASTE.COMMPUB",0,0]
[null,null,null,null,null,null,null,null,null,null,null,null,null,null,null,null,null,null,null,null,null,null,null,null,null,null,null,null,null,null,null,null,null,null,null,null,null,null,null,null,null,null,null,null,null,null,null,null,null,"RESIDENT","INDWASTE","INDWASTE.RESIDENT",0,0]
[null,null,null,null,null,null,null,null,null,null,null,null,null,null,null,null,null,null,null,null,null,null,null,null,null,null,null,null,null,null,null,null,null,null,null,null,null,null,null,null,null,null,null,null,null,null,null,null,null,"INDPROD","MUNWASTER","MUNWASTER.INDPROD",0,0]
[null,null,null,null,null,null,null,null,null,null,null,null,null,null,null,null,null,null,null,null,null,null,null,null,null,null,null,null,null,null,null,null,null,null,null,null,null,null,null,null,null,null,null,null,null,null,null,null,null,"TOTIMPSB","MUNWASTER","MUNWASTER.TOTIMPSB",0,0]
[null,null,null,null,null,null,null,null,null,null,null,null,null,null,null,null,null,null,null,null,null,null,null,null,null,null,null,null,null,null,null,null,null,null,null,null,null,null,null,null,null,null,null,null,null,null,null,null,null,"TOTEXPSB","MUNWASTER","MUNWASTER.TOTEXPSB",0,0]
[null,null,null,null,null,null,null,null,null,null,null,null,null,null,null,null,null,null,null,null,null,null,null,null,null,null,null,null,null,null,null,null,null,null,null,null,null,null,null,null,null,null,null,null,null,null,null,null,null,"STCHANAT","MUNWASTER","MUNWASTER.STCHANAT",0,0]
[null,null,null,null,null,null,null,null,null,null,null,null,null,null,null,null,null,null,null,null,null,null,null,null,null,null,null,null,null,null,null,null,null,null,null,null,null,null,null,null,null,null,null,null,null,null,null,null,null,"INDCONC","MUNWASTER","MUNWASTER.INDCONC",0]
[null,null,null,null,null,null,null,null,null,null,null,null,null,null,null,null,null,null,null,null,null,null,null,null,null,null,null,null,null,null,null,null,null,null,null,null,null,null,null,null,null,null,null,null,null,null,null,null,null,"STATDIFF","MUNWASTER","MUNWASTER.STATDIFF",0]
[null,null,null,null,null,null,null,null,null,null,null,null,null,null,null,null,null,null,null,null,null,null,null,null,null,null,null,null,null,null,null,null,null,null,null,null,null,null,null,null,null,null,null,null,null,null,null,null,null,"TOTTRANF","MUNWASTER","MUNWASTER.TOTTRANF",0,0]
[null,null,null,null,null,null,null,null,null,null,null,null,null,null,null,null,null,null,null,null,null,null,null,null,null,null,null,null,null,null,null,null,null,null,null,null,null,null,null,null,null,null,null,null,null,null,null,null,null,"MTOELEHEAT","MUNWASTER","MUNWASTER.MTOELEHEAT",0,0]
[null,null,null,null,null,null,null,null,null,null,null,null,null,null,null,null,null,null,null,null,null,null,null,null,null,null,null,null,null,null,null,null,null,null,null,null,null,null,null,null,null,null,null,null,null,null,null,null,null,"TBLENDGAS","MUNWASTER","MUNWASTER.TBLENDGAS",0,0]
[null,null,null,null,null,null,null,null,null,null,null,null,null,null,null,null,null,null,null,null,null,null,null,null,null,null,null,null,null,null,null,null,null,null,null,null,null,null,null,null,null,null,null,null,null,null,null,null,null,"TBLENDOIL","MUNWASTER","MUNWASTER.TBLENDOIL",0,0]
[null,null,null,null,null,null,null,null,null,null,null,null,null,null,null,null,null,null,null,null,null,null,null,null,null,null,null,null,null,null,null,null,null,null,null,null,null,null,null,null,null,null,null,null,null,null,null,null,null,"TOTENGY","MUNWASTER","MUNWASTER.TOTENGY",0,{"$f":"BA107","v":0}]
[null,null,null,null,null,null,null,null,null,null,null,null,null,null,null,null,null,null,null,null,null,null,null,null,null,null,null,null,null,null,null,null,null,null,null,null,null,null,null,null,null,null,null,null,null,null,null,null,null,"DISTLOSS","MUNWASTER","MUNWASTER.DISTLOSS",0,0]
[null,null,null,null,null,null,null,null,null,null,null,null,null,null,null,null,null,null,null,null,null,null,null,null,null,null,null,null,null,null,null,null,null,null,null,null,null,null,null,null,null,null,null,null,null,null,null,null,null,"FINCONS","MUNWASTER","MUNWASTER.FINCONS",0]
[null,null,null,null,null,null,null,null,null,null,null,null,null,null,null,null,null,null,null,null,null,null,null,null,null,null,null,null,null,null,null,null,null,null,null,null,null,null,null,null,null,null,null,null,null,null,null,null,null,"FINECONS","MUNWASTER","MUNWASTER.FINECONS",0]
[null,null,null,null,null,null,null,null,null,null,null,null,null,null,null,null,null,null,null,null,null,null,null,null,null,null,null,null,null,null,null,null,null,null,null,null,null,null,null,null,null,null,null,null,null,null,null,null,null,"TOTIND","MUNWASTER","MUNWASTER.TOTIND",0,{"$f":"BA111","v":0}]
[null,null,null,null,null,null,null,null,null,null,null,null,null,null,null,null,null,null,null,null,null,null,null,null,null,null,null,null,null,null,null,null,null,null,null,null,null,null,null,null,null,null,null,null,null,null,null,null,null,"TOTTRANS","MUNWASTER","MUNWASTER.TOTTRANS",0,0]
[null,null,null,null,null,null,null,null,null,null,null,null,null,null,null,null,null,null,null,null,null,null,null,null,null,null,null,null,null,null,null,null,null,null,null,null,null,null,null,null,null,null,null,null,null,null,null,null,null,"TOTOTHER","MUNWASTER","MUNWASTER.TOTOTHER",0,0]
[null,null,null,null,null,null,null,null,null,null,null,null,null,null,null,null,null,null,null,null,null,null,null,null,null,null,null,null,null,null,null,null,null,null,null,null,null,null,null,null,null,null,null,null,null,null,null,null,null,"COMMPUB","MUNWASTER","MUNWASTER.COMMPUB",0,0]
[null,null,null,null,null,null,null,null,null,null,null,null,null,null,null,null,null,null,null,null,null,null,null,null,null,null,null,null,null,null,null,null,null,null,null,null,null,null,null,null,null,null,null,null,null,null,null,null,null,"RESIDENT","MUNWASTER","MUNWASTER.RESIDENT",0,0]
[null,null,null,null,null,null,null,null,null,null,null,null,null,null,null,null,null,null,null,null,null,null,null,null,null,null,null,null,null,null,null,null,null,null,null,null,null,null,null,null,null,null,null,null,null,null,null,null,null,"INDPROD","MUNWASTEN","MUNWASTEN.INDPROD",0,0]
[null,null,null,null,null,null,null,null,null,null,null,null,null,null,null,null,null,null,null,null,null,null,null,null,null,null,null,null,null,null,null,null,null,null,null,null,null,null,null,null,null,null,null,null,null,null,null,null,null,"TOTIMPSB","MUNWASTEN","MUNWASTEN.TOTIMPSB",0,0]
[null,null,null,null,null,null,null,null,null,null,null,null,null,null,null,null,null,null,null,null,null,null,null,null,null,null,null,null,null,null,null,null,null,null,null,null,null,null,null,null,null,null,null,null,null,null,null,null,null,"TOTEXPSB","MUNWASTEN","MUNWASTEN.TOTEXPSB",0,0]
[null,null,null,null,null,null,null,null,null,null,null,null,null,null,null,null,null,null,null,null,null,null,null,null,null,null,null,null,null,null,null,null,null,null,null,null,null,null,null,null,null,null,null,null,null,null,null,null,null,"STCHANAT","MUNWASTEN","MUNWASTEN.STCHANAT",0,0]
[null,null,null,null,null,null,null,null,null,null,null,null,null,null,null,null,null,null,null,null,null,null,null,null,null,null,null,null,null,null,null,null,null,null,null,null,null,null,null,null,null,null,null,null,null,null,null,null,null,"INDCONC","MUNWASTEN","MUNWASTEN.INDCONC",0]
[null,null,null,null,null,null,null,null,null,null,null,null,null,null,null,null,null,null,null,null,null,null,null,null,null,null,null,null,null,null,null,null,null,null,null,null,null,null,null,null,null,null,null,null,null,null,null,null,null,"STATDIFF","MUNWASTEN","MUNWASTEN.STATDIFF",0]
[null,null,null,null,null,null,null,null,null,null,null,null,null,null,null,null,null,null,null,null,null,null,null,null,null,null,null,null,null,null,null,null,null,null,null,null,null,null,null,null,null,null,null,null,null,null,null,null,null,"TOTTRANF","MUNWASTEN","MUNWASTEN.TOTTRANF",0,{"$f":"BA122","v":0}]
[null,null,null,null,null,null,null,null,null,null,null,null,null,null,null,null,null,null,null,null,null,null,null,null,null,null,null,null,null,null,null,null,null,null,null,null,null,null,null,null,null,null,null,null,null,null,null,null,null,"MTOELEHEAT","MUNWASTEN","MUNWASTEN.MTOELEHEAT",0,0]
[null,null,null,null,null,null,null,null,null,null,null,null,null,null,null,null,null,null,null,null,null,null,null,null,null,null,null,null,null,null,null,null,null,null,null,null,null,null,null,null,null,null,null,null,null,null,null,null,null,"TBLENDGAS","MUNWASTEN","MUNWASTEN.TBLENDGAS",0,0]
[null,null,null,null,null,null,null,null,null,null,null,null,null,null,null,null,null,null,null,null,null,null,null,null,null,null,null,null,null,null,null,null,null,null,null,null,null,null,null,null,null,null,null,null,null,null,null,null,null,"TBLENDOIL","MUNWASTEN","MUNWASTEN.TBLENDOIL",0,0]
[null,null,null,null,null,null,null,null,null,null,null,null,null,null,null,null,null,null,null,null,null,null,null,null,null,null,null,null,null,null,null,null,null,null,null,null,null,null,null,null,null,null,null,null,null,null,null,null,null,"TOTENGY","MUNWASTEN","MUNWASTEN.TOTENGY",0,{"$f":"BA126","v":0}]
[null,null,null,null,null,null,null,null,null,null,null,null,null,null,null,null,null,null,null,null,null,null,null,null,null,null,null,null,null,null,null,null,null,null,null,null,null,null,null,null,null,null,null,null,null,null,null,null,null,"DISTLOSS","MUNWASTEN","MUNWASTEN.DISTLOSS",0,0]
[null,null,null,null,null,null,null,null,null,null,null,null,null,null,null,null,null,null,null,null,null,null,null,null,null,null,null,null,null,null,null,null,null,null,null,null,null,null,null,null,null,null,null,null,null,null,null,null,null,"FINCONS","MUNWASTEN","MUNWASTEN.FINCONS",0]
[null,null,null,null,null,null,null,null,null,null,null,null,null,null,null,null,null,null,null,null,null,null,null,null,null,null,null,null,null,null,null,null,null,null,null,null,null,null,null,null,null,null,null,null,null,null,null,null,null,"FINECONS","MUNWASTEN","MUNWASTEN.FINECONS",0]
[null,null,null,null,null,null,null,null,null,null,null,null,null,null,null,null,null,null,null,null,null,null,null,null,null,null,null,null,null,null,null,null,null,null,null,null,null,null,null,null,null,null,null,null,null,null,null,null,null,"TOTIND","MUNWASTEN","MUNWASTEN.TOTIND",0,0]
[null,null,null,null,null,null,null,null,null,null,null,null,null,null,null,null,null,null,null,null,null,null,null,null,null,null,null,null,null,null,null,null,null,null,null,null,null,null,null,null,null,null,null,null,null,null,null,null,null,"TOTTRANS","MUNWASTEN","MUNWASTEN.TOTTRANS",0,0]
[null,null,null,null,null,null,null,null,null,null,null,null,null,null,null,null,null,null,null,null,null,null,null,null,null,null,null,null,null,null,null,null,null,null,null,null,null,null,null,null,null,null,null,null,null,null,null,null,null,"TOTOTHER","MUNWASTEN","MUNWASTEN.TOTOTHER",0,0]
[null,null,null,null,null,null,null,null,null,null,null,null,null,null,null,null,null,null,null,null,null,null,null,null,null,null,null,null,null,null,null,null,null,null,null,null,null,null,null,null,null,null,null,null,null,null,null,null,null,"COMMPUB","MUNWASTEN","MUNWASTEN.COMMPUB",0,0]
[null,null,null,null,null,null,null,null,null,null,null,null,null,null,null,null,null,null,null,null,null,null,null,null,null,null,null,null,null,null,null,null,null,null,null,null,null,null,null,null,null,null,null,null,null,null,null,null,null,"RESIDENT","MUNWASTEN","MUNWASTEN.RESIDENT",0,0]
[null,null,null,null,null,null,null,null,null,null,null,null,null,null,null,null,null,null,null,null,null,null,null,null,null,null,null,null,null,null,null,null,null,null,null,null,null,null,null,null,null,null,null,null,null,null,null,null,null,"INDPROD","PRIMSBIO","PRIMSBIO.INDPROD",0,0]
[null,null,null,null,null,null,null,null,null,null,null,null,null,null,null,null,null,null,null,null,null,null,null,null,null,null,null,null,null,null,null,null,null,null,null,null,null,null,null,null,null,null,null,null,null,null,null,null,null,"TOTIMPSB","PRIMSBIO","PRIMSBIO.TOTIMPSB",0,0]
[null,null,null,null,null,null,null,null,null,null,null,null,null,null,null,null,null,null,null,null,null,null,null,null,null,null,null,null,null,null,null,null,null,null,null,null,null,null,null,null,null,null,null,null,null,null,null,null,null,"TOTEXPSB","PRIMSBIO","PRIMSBIO.TOTEXPSB",0,0]
[null,null,null,null,null,null,null,null,null,null,null,null,null,null,null,null,null,null,null,null,null,null,null,null,null,null,null,null,null,null,null,null,null,null,null,null,null,null,null,null,null,null,null,null,null,null,null,null,null,"STCHANAT","PRIMSBIO","PRIMSBIO.STCHANAT",0,{"$f":"BB139-BB141-BB145-BB146-BB147","v":0}]
[null,null,null,null,null,null,null,null,null,null,null,null,null,null,null,null,null,null,null,null,null,null,null,null,null,null,null,null,null,null,null,null,null,null,null,null,null,null,null,null,null,null,null,null,null,null,null,null,null,"INDCONC","PRIMSBIO","PRIMSBIO.INDCONC",0]
[null,null,null,null,null,null,null,null,null,null,null,null,null,null,null,null,null,null,null,null,null,null,null,null,null,null,null,null,null,null,null,null,null,null,null,null,null,null,null,null,null,null,null,null,null,null,null,null,null,"STATDIFF","PRIMSBIO","PRIMSBIO.STATDIFF",0]
[null,null,null,null,null,null,null,null,null,null,null,null,null,null,null,null,null,null,null,null,null,null,null,null,null,null,null,null,null,null,null,null,null,null,null,null,null,null,null,null,null,null,null,null,null,null,null,null,null,"TOTTRANF","PRIMSBIO","PRIMSBIO.TOTTRANF",0,{"$f":"BA141","v":0}]
[null,null,null,null,null,null,null,null,null,null,null,null,null,null,null,null,null,null,null,null,null,null,null,null,null,null,null,null,null,null,null,null,null,null,null,null,null,null,null,null,null,null,null,null,null,null,null,null,null,"MTOELEHEAT","PRIMSBIO","PRIMSBIO.MTOELEHEAT",0,0]
[null,null,null,null,null,null,null,null,null,null,null,null,null,null,null,null,null,null,null,null,null,null,null,null,null,null,null,null,null,null,null,null,null,null,null,null,null,null,null,null,null,null,null,null,null,null,null,null,null,"TBLENDGAS","PRIMSBIO","PRIMSBIO.TBLENDGAS",0,0]
[null,null,null,null,null,null,null,null,null,null,null,null,null,null,null,null,null,null,null,null,null,null,null,null,null,null,null,null,null,null,null,null,null,null,null,null,null,null,null,null,null,null,null,null,null,null,null,null,null,"TBLENDOIL","PRIMSBIO","PRIMSBIO.TBLENDOIL",0,0]
[null,null,null,null,null,null,null,null,null,null,null,null,null,null,null,null,null,null,null,null,null,null,null,null,null,null,null,null,null,null,null,null,null,null,null,null,null,null,null,null,null,null,null,null,null,null,null,null,null,"TOTENGY","PRIMSBIO","PRIMSBIO.TOTENGY",0,{"$f":"BA145","v":0}]
[null,null,null,null,null,null,null,null,null,null,null,null,null,null,null,null,null,null,null,null,null,null,null,null,null,null,null,null,null,null,null,null,null,null,null,null,null,null,null,null,null,null,null,null,null,null,null,null,null,"DISTLOSS","PRIMSBIO","PRIMSBIO.DISTLOSS",0,0]
[null,null,null,null,null,null,null,null,null,null,null,null,null,null,null,null,null,null,null,null,null,null,null,null,null,null,null,null,null,null,null,null,null,null,null,null,null,null,null,null,null,null,null,null,null,null,null,null,null,"FINCONS","PRIMSBIO","PRIMSBIO.FINCONS",0]
[null,null,null,null,null,null,null,null,null,null,null,null,null,null,null,null,null,null,null,null,null,null,null,null,null,null,null,null,null,null,null,null,null,null,null,null,null,null,null,null,null,null,null,null,null,null,null,null,null,"FINECONS","PRIMSBIO","PRIMSBIO.FINECONS",0]
[null,null,null,null,null,null,null,null,null,null,null,null,null,null,null,null,null,null,null,null,null,null,null,null,null,null,null,null,null,null,null,null,null,null,null,null,null,null,null,null,null,null,null,null,null,null,null,null,null,"TOTIND","PRIMSBIO","PRIMSBIO.TOTIND",0,0]
[null,null,null,null,null,null,null,null,null,null,null,null,null,null,null,null,null,null,null,null,null,null,null,null,null,null,null,null,null,null,null,null,null,null,null,null,null,null,null,null,null,null,null,null,null,null,null,null,null,"TOTTRANS","PRIMSBIO","PRIMSBIO.TOTTRANS",0,0]
[null,null,null,null,null,null,null,null,null,null,null,null,null,null,null,null,null,null,null,null,null,null,null,null,null,null,null,null,null,null,null,null,null,null,null,null,null,null,null,null,null,null,null,null,null,null,null,null,null,"TOTOTHER","PRIMSBIO","PRIMSBIO.TOTOTHER",0,0]
[null,null,null,null,null,null,null,null,null,null,null,null,null,null,null,null,null,null,null,null,null,null,null,null,null,null,null,null,null,null,null,null,null,null,null,null,null,null,null,null,null,null,null,null,null,null,null,null,null,"COMMPUB","PRIMSBIO","PRIMSBIO.COMMPUB",0,0]
[null,null,null,null,null,null,null,null,null,null,null,null,null,null,null,null,null,null,null,null,null,null,null,null,null,null,null,null,null,null,null,null,null,null,null,null,null,null,null,null,null,null,null,null,null,null,null,null,null,"RESIDENT","PRIMSBIO","PRIMSBIO.RESIDENT",0,0]
[null,null,null,null,null,null,null,null,null,null,null,null,null,null,null,null,null,null,null,null,null,null,null,null,null,null,null,null,null,null,null,null,null,null,null,null,null,null,null,null,null,null,null,null,null,null,null,null,null,"INDPROD","CHARCOAL","CHARCOAL.INDPROD",0,0]
[null,null,null,null,null,null,null,null,null,null,null,null,null,null,null,null,null,null,null,null,null,null,null,null,null,null,null,null,null,null,null,null,null,null,null,null,null,null,null,null,null,null,null,null,null,null,null,null,null,"TOTIMPSB","CHARCOAL","CHARCOAL.TOTIMPSB",0,0]
[null,null,null,null,null,null,null,null,null,null,null,null,null,null,null,null,null,null,null,null,null,null,null,null,null,null,null,null,null,null,null,null,null,null,null,null,null,null,null,null,null,null,null,null,null,null,null,null,null,"TOTEXPSB","CHARCOAL","CHARCOAL.TOTEXPSB",0,0]
[null,null,null,null,null,null,null,null,null,null,null,null,null,null,null,null,null,null,null,null,null,null,null,null,null,null,null,null,null,null,null,null,null,null,null,null,null,null,null,null,null,null,null,null,null,null,null,null,null,"STCHANAT","CHARCOAL","CHARCOAL.STCHANAT",0,0]
[null,null,null,null,null,null,null,null,null,null,null,null,null,null,null,null,null,null,null,null,null,null,null,null,null,null,null,null,null,null,null,null,null,null,null,null,null,null,null,null,null,null,null,null,null,null,null,null,null,"INDCONC","CHARCOAL","CHARCOAL.INDCONC",0]
[null,null,null,null,null,null,null,null,null,null,null,null,null,null,null,null,null,null,null,null,null,null,null,null,null,null,null,null,null,null,null,null,null,null,null,null,null,null,null,null,null,null,null,null,null,null,null,null,null,"STATDIFF","CHARCOAL","CHARCOAL.STATDIFF",0]
[null,null,null,null,null,null,null,null,null,null,null,null,null,null,null,null,null,null,null,null,null,null,null,null,null,null,null,null,null,null,null,null,null,null,null,null,null,null,null,null,null,null,null,null,null,null,null,null,null,"TOTTRANF","CHARCOAL","CHARCOAL.TOTTRANF",0,0]
[null,null,null,null,null,null,null,null,null,null,null,null,null,null,null,null,null,null,null,null,null,null,null,null,null,null,null,null,null,null,null,null,null,null,null,null,null,null,null,null,null,null,null,null,null,null,null,null,null,"MTOELEHEAT","CHARCOAL","CHARCOAL.MTOELEHEAT",0,0]
[null,null,null,null,null,null,null,null,null,null,null,null,null,null,null,null,null,null,null,null,null,null,null,null,null,null,null,null,null,null,null,null,null,null,null,null,null,null,null,null,null,null,null,null,null,null,null,null,null,"TBLENDGAS","CHARCOAL","CHARCOAL.TBLENDGAS",0,0]
[null,null,null,null,null,null,null,null,null,null,null,null,null,null,null,null,null,null,null,null,null,null,null,null,null,null,null,null,null,null,null,null,null,null,null,null,null,null,null,null,null,null,null,null,null,null,null,null,null,"TBLENDOIL","CHARCOAL","CHARCOAL.TBLENDOIL",0,0]
[null,null,null,null,null,null,null,null,null,null,null,null,null,null,null,null,null,null,null,null,null,null,null,null,null,null,null,null,null,null,null,null,null,null,null,null,null,null,null,null,null,null,null,null,null,null,null,null,null,"TOTENGY","CHARCOAL","CHARCOAL.TOTENGY",0,0]
[null,null,null,null,null,null,null,null,null,null,null,null,null,null,null,null,null,null,null,null,null,null,null,null,null,null,null,null,null,null,null,null,null,null,null,null,null,null,null,null,null,null,null,null,null,null,null,null,null,"DISTLOSS","CHARCOAL","CHARCOAL.DISTLOSS",0,0]
[null,null,null,null,null,null,null,null,null,null,null,null,null,null,null,null,null,null,null,null,null,null,null,null,null,null,null,null,null,null,null,null,null,null,null,null,null,null,null,null,null,null,null,null,null,null,null,null,null,"FINCONS","CHARCOAL","CHARCOAL.FINCONS",0]
[null,null,null,null,null,null,null,null,null,null,null,null,null,null,null,null,null,null,null,null,null,null,null,null,null,null,null,null,null,null,null,null,null,null,null,null,null,null,null,null,null,null,null,null,null,null,null,null,null,"FINECONS","CHARCOAL","CHARCOAL.FINECONS",0]
[null,null,null,null,null,null,null,null,null,null,null,null,null,null,null,null,null,null,null,null,null,null,null,null,null,null,null,null,null,null,null,null,null,null,null,null,null,null,null,null,null,null,null,null,null,null,null,null,null,"TOTIND","CHARCOAL","CHARCOAL.TOTIND",0,0]
[null,null,null,null,null,null,null,null,null,null,null,null,null,null,null,null,null,null,null,null,null,null,null,null,null,null,null,null,null,null,null,null,null,null,null,null,null,null,null,null,null,null,null,null,null,null,null,null,null,"TOTTRANS","CHARCOAL","CHARCOAL.TOTTRANS",0,{"$f":"BA169","v":0}]
[null,null,null,null,null,null,null,null,null,null,null,null,null,null,null,null,null,null,null,null,null,null,null,null,null,null,null,null,null,null,null,null,null,null,null,null,null,null,null,null,null,null,null,null,null,null,null,null,null,"TOTOTHER","CHARCOAL","CHARCOAL.TOTOTHER",0,0]
[null,null,null,null,null,null,null,null,null,null,null,null,null,null,null,null,null,null,null,null,null,null,null,null,null,null,null,null,null,null,null,null,null,null,null,null,null,null,null,null,null,null,null,null,null,null,null,null,null,"COMMPUB","CHARCOAL","CHARCOAL.COMMPUB",0,0]
[null,null,null,null,null,null,null,null,null,null,null,null,null,null,null,null,null,null,null,null,null,null,null,null,null,null,null,null,null,null,null,null,null,null,null,null,null,null,null,null,null,null,null,null,null,null,null,null,null,"RESIDENT","CHARCOAL","CHARCOAL.RESIDENT",0,0]
[null,null,null,null,null,null,null,null,null,null,null,null,null,null,null,null,null,null,null,null,null,null,null,null,null,null,null,null,null,null,null,null,null,null,null,null,null,null,null,null,null,null,null,null,null,null,null,null,null,"INDPROD","BIOGASES","BIOGASES.INDPROD",0,0]
[null,null,null,null,null,null,null,null,null,null,null,null,null,null,null,null,null,null,null,null,null,null,null,null,null,null,null,null,null,null,null,null,null,null,null,null,null,null,null,null,null,null,null,null,null,null,null,null,null,"TOTIMPSB","BIOGASES","BIOGASES.TOTIMPSB",0,0]
[null,null,null,null,null,null,null,null,null,null,null,null,null,null,null,null,null,null,null,null,null,null,null,null,null,null,null,null,null,null,null,null,null,null,null,null,null,null,null,null,null,null,null,null,null,null,null,null,null,"TOTEXPSB","BIOGASES","BIOGASES.TOTEXPSB",0,0]
[null,null,null,null,null,null,null,null,null,null,null,null,null,null,null,null,null,null,null,null,null,null,null,null,null,null,null,null,null,null,null,null,null,null,null,null,null,null,null,null,null,null,null,null,null,null,null,null,null,"STCHANAT","BIOGASES","BIOGASES.STCHANAT",0,0]
[null,null,null,null,null,null,null,null,null,null,null,null,null,null,null,null,null,null,null,null,null,null,null,null,null,null,null,null,null,null,null,null,null,null,null,null,null,null,null,null,null,null,null,null,null,null,null,null,null,"INDCONC","BIOGASES","BIOGASES.INDCONC",0]
[null,null,null,null,null,null,null,null,null,null,null,null,null,null,null,null,null,null,null,null,null,null,null,null,null,null,null,null,null,null,null,null,null,null,null,null,null,null,null,null,null,null,null,null,null,null,null,null,null,"STATDIFF","BIOGASES","BIOGASES.STATDIFF",0]
[null,null,null,null,null,null,null,null,null,null,null,null,null,null,null,null,null,null,null,null,null,null,null,null,null,null,null,null,null,null,null,null,null,null,null,null,null,null,null,null,null,null,null,null,null,null,null,null,null,"TOTTRANF","BIOGASES","BIOGASES.TOTTRANF",0,0]
[null,null,null,null,null,null,null,null,null,null,null,null,null,null,null,null,null,null,null,null,null,null,null,null,null,null,null,null,null,null,null,null,null,null,null,null,null,null,null,null,null,null,null,null,null,null,null,null,null,"MTOELEHEAT","BIOGASES","BIOGASES.MTOELEHEAT",0,0]
[null,null,null,null,null,null,null,null,null,null,null,null,null,null,null,null,null,null,null,null,null,null,null,null,null,null,null,null,null,null,null,null,null,null,null,null,null,null,null,null,null,null,null,null,null,null,null,null,null,"TBLENDGAS","BIOGASES","BIOGASES.TBLENDGAS",0,0]
[null,null,null,null,null,null,null,null,null,null,null,null,null,null,null,null,null,null,null,null,null,null,null,null,null,null,null,null,null,null,null,null,null,null,null,null,null,null,null,null,null,null,null,null,null,null,null,null,null,"TBLENDOIL","BIOGASES","BIOGASES.TBLENDOIL",0,0]
[null,null,null,null,null,null,null,null,null,null,null,null,null,null,null,null,null,null,null,null,null,null,null,null,null,null,null,null,null,null,null,null,null,null,null,null,null,null,null,null,null,null,null,null,null,null,null,null,null,"TOTENGY","BIOGASES","BIOGASES.TOTENGY",0,0]
[null,null,null,null,null,null,null,null,null,null,null,null,null,null,null,null,null,null,null,null,null,null,null,null,null,null,null,null,null,null,null,null,null,null,null,null,null,null,null,null,null,null,null,null,null,null,null,null,null,"DISTLOSS","BIOGASES","BIOGASES.DISTLOSS",0,0]
[null,null,null,null,null,null,null,null,null,null,null,null,null,null,null,null,null,null,null,null,null,null,null,null,null,null,null,null,null,null,null,null,null,null,null,null,null,null,null,null,null,null,null,null,null,null,null,null,null,"FINCONS","BIOGASES","BIOGASES.FINCONS",0]
[null,null,null,null,null,null,null,null,null,null,null,null,null,null,null,null,null,null,null,null,null,null,null,null,null,null,null,null,null,null,null,null,null,null,null,null,null,null,null,null,null,null,null,null,null,null,null,null,null,"FINECONS","BIOGASES","BIOGASES.FINECONS",0]
[null,null,null,null,null,null,null,null,null,null,null,null,null,null,null,null,null,null,null,null,null,null,null,null,null,null,null,null,null,null,null,null,null,null,null,null,null,null,null,null,null,null,null,null,null,null,null,null,null,"TOTIND","BIOGASES","BIOGASES.TOTIND",0,0]
[null,null,null,null,null,null,null,null,null,null,null,null,null,null,null,null,null,null,null,null,null,null,null,null,null,null,null,null,null,null,null,null,null,null,null,null,null,null,null,null,null,null,null,null,null,null,null,null,null,"TOTTRANS","BIOGASES","BIOGASES.TOTTRANS",0,0]
[null,null,null,null,null,null,null,null,null,null,null,null,null,null,null,null,null,null,null,null,null,null,null,null,null,null,null,null,null,null,null,null,null,null,null,null,null,null,null,null,null,null,null,null,null,null,null,null,null,"TOTOTHER","BIOGASES","BIOGASES.TOTOTHER",0,0]
[null,null,null,null,null,null,null,null,null,null,null,null,null,null,null,null,null,null,null,null,null,null,null,null,null,null,null,null,null,null,null,null,null,null,null,null,null,null,null,null,null,null,null,null,null,null,null,null,null,"COMMPUB","BIOGASES","BIOGASES.COMMPUB",0,0]
[null,null,null,null,null,null,null,null,null,null,null,null,null,null,null,null,null,null,null,null,null,null,null,null,null,null,null,null,null,null,null,null,null,null,null,null,null,null,null,null,null,null,null,null,null,null,null,null,null,"RESIDENT","BIOGASES","BIOGASES.RESIDENT",0,0]
[null,null,null,null,null,null,null,null,null,null,null,null,null,null,null,null,null,null,null,null,null,null,null,null,null,null,null,null,null,null,null,null,null,null,null,null,null,null,null,null,null,null,null,null,null,null,null,null,null,"INDPROD","BIOGASOL","BIOGASOL.INDPROD",0,0]
[null,null,null,null,null,null,null,null,null,null,null,null,null,null,null,null,null,null,null,null,null,null,null,null,null,null,null,null,null,null,null,null,null,null,null,null,null,null,null,null,null,null,null,null,null,null,null,null,null,"TOTIMPSB","BIOGASOL","BIOGASOL.TOTIMPSB",0,0]
[null,null,null,null,null,null,null,null,null,null,null,null,null,null,null,null,null,null,null,null,null,null,null,null,null,null,null,null,null,null,null,null,null,null,null,null,null,null,null,null,null,null,null,null,null,null,null,null,null,"TOTEXPSB","BIOGASOL","BIOGASOL.TOTEXPSB",0,0]
[null,null,null,null,null,null,null,null,null,null,null,null,null,null,null,null,null,null,null,null,null,null,null,null,null,null,null,null,null,null,null,null,null,null,null,null,null,null,null,null,null,null,null,null,null,null,null,null,null,"STCHANAT","BIOGASOL","BIOGASOL.STCHANAT",0,0]
[null,null,null,null,null,null,null,null,null,null,null,null,null,null,null,null,null,null,null,null,null,null,null,null,null,null,null,null,null,null,null,null,null,null,null,null,null,null,null,null,null,null,null,null,null,null,null,null,null,"INDCONC","BIOGASOL","BIOGASOL.INDCONC",0]
[null,null,null,null,null,null,null,null,null,null,null,null,null,null,null,null,null,null,null,null,null,null,null,null,null,null,null,null,null,null,null,null,null,null,null,null,null,null,null,null,null,null,null,null,null,null,null,null,null,"STATDIFF","BIOGASOL","BIOGASOL.STATDIFF",0]
[null,null,null,null,null,null,null,null,null,null,null,null,null,null,null,null,null,null,null,null,null,null,null,null,null,null,null,null,null,null,null,null,null,null,null,null,null,null,null,null,null,null,null,null,null,null,null,null,null,"TOTTRANF","BIOGASOL","BIOGASOL.TOTTRANF",0,0]
[null,null,null,null,null,null,null,null,null,null,null,null,null,null,null,null,null,null,null,null,null,null,null,null,null,null,null,null,null,null,null,null,null,null,null,null,null,null,null,null,null,null,null,null,null,null,null,null,null,"MTOELEHEAT","BIOGASOL","BIOGASOL.MTOELEHEAT",0,0]
[null,null,null,null,null,null,null,null,null,null,null,null,null,null,null,null,null,null,null,null,null,null,null,null,null,null,null,null,null,null,null,null,null,null,null,null,null,null,null,null,null,null,null,null,null,null,null,null,null,"TBLENDGAS","BIOGASOL","BIOGASOL.TBLENDGAS",0,0]
[null,null,null,null,null,null,null,null,null,null,null,null,null,null,null,null,null,null,null,null,null,null,null,null,null,null,null,null,null,null,null,null,null,null,null,null,null,null,null,null,null,null,null,null,null,null,null,null,null,"TBLENDOIL","BIOGASOL","BIOGASOL.TBLENDOIL",0,0]
[null,null,null,null,null,null,null,null,null,null,null,null,null,null,null,null,null,null,null,null,null,null,null,null,null,null,null,null,null,null,null,null,null,null,null,null,null,null,null,null,null,null,null,null,null,null,null,null,null,"TOTENGY","BIOGASOL","BIOGASOL.TOTENGY",0,0]
[null,null,null,null,null,null,null,null,null,null,null,null,null,null,null,null,null,null,null,null,null,null,null,null,null,null,null,null,null,null,null,null,null,null,null,null,null,null,null,null,null,null,null,null,null,null,null,null,null,"DISTLOSS","BIOGASOL","BIOGASOL.DISTLOSS",0,0]
[null,null,null,null,null,null,null,null,null,null,null,null,null,null,null,null,null,null,null,null,null,null,null,null,null,null,null,null,null,null,null,null,null,null,null,null,null,null,null,null,null,null,null,null,null,null,null,null,null,"FINCONS","BIOGASOL","BIOGASOL.FINCONS",0]
[null,null,null,null,null,null,null,null,null,null,null,null,null,null,null,null,null,null,null,null,null,null,null,null,null,null,null,null,null,null,null,null,null,null,null,null,null,null,null,null,null,null,null,null,null,null,null,null,null,"FINECONS","BIOGASOL","BIOGASOL.FINECONS",0]
[null,null,null,null,null,null,null,null,null,null,null,null,null,null,null,null,null,null,null,null,null,null,null,null,null,null,null,null,null,null,null,null,null,null,null,null,null,null,null,null,null,null,null,null,null,null,null,null,null,"TOTIND","BIOGASOL","BIOGASOL.TOTIND",0,0]
[null,null,null,null,null,null,null,null,null,null,null,null,null,null,null,null,null,null,null,null,null,null,null,null,null,null,null,null,null,null,null,null,null,null,null,null,null,null,null,null,null,null,null,null,null,null,null,null,null,"TOTTRANS","BIOGASOL","BIOGASOL.TOTTRANS",0,0]
[null,null,null,null,null,null,null,null,null,null,null,null,null,null,null,null,null,null,null,null,null,null,null,null,null,null,null,null,null,null,null,null,null,null,null,null,null,null,null,null,null,null,null,null,null,null,null,null,null,"TOTOTHER","BIOGASOL","BIOGASOL.TOTOTHER",0,0]
[null,null,null,null,null,null,null,null,null,null,null,null,null,null,null,null,null,null,null,null,null,null,null,null,null,null,null,null,null,null,null,null,null,null,null,null,null,null,null,null,null,null,null,null,null,null,null,null,null,"COMMPUB","BIOGASOL","BIOGASOL.COMMPUB",0,0]
[null,null,null,null,null,null,null,null,null,null,null,null,null,null,null,null,null,null,null,null,null,null,null,null,null,null,null,null,null,null,null,null,null,null,null,null,null,null,null,null,null,null,null,null,null,null,null,null,null,"RESIDENT","BIOGASOL","BIOGASOL.RESIDENT",0,0]
[null,null,null,null,null,null,null,null,null,null,null,null,null,null,null,null,null,null,null,null,null,null,null,null,null,null,null,null,null,null,null,null,null,null,null,null,null,null,null,null,null,null,null,null,null,null,null,null,null,"INDPROD","BIOETHANOL","BIOETHANOL.INDPROD",0,0]
[null,null,null,null,null,null,null,null,null,null,null,null,null,null,null,null,null,null,null,null,null,null,null,null,null,null,null,null,null,null,null,null,null,null,null,null,null,null,null,null,null,null,null,null,null,null,null,null,null,"TOTIMPSB","BIOETHANOL","BIOETHANOL.TOTIMPSB",0,0]
[null,null,null,null,null,null,null,null,null,null,null,null,null,null,null,null,null,null,null,null,null,null,null,null,null,null,null,null,null,null,null,null,null,null,null,null,null,null,null,null,null,null,null,null,null,null,null,null,null,"TOTEXPSB","BIOETHANOL","BIOETHANOL.TOTEXPSB",0,0]
[null,null,null,null,null,null,null,null,null,null,null,null,null,null,null,null,null,null,null,null,null,null,null,null,null,null,null,null,null,null,null,null,null,null,null,null,null,null,null,null,null,null,null,null,null,null,null,null,null,"STCHANAT","BIOETHANOL","BIOETHANOL.STCHANAT",0,0]
[null,null,null,null,null,null,null,null,null,null,null,null,null,null,null,null,null,null,null,null,null,null,null,null,null,null,null,null,null,null,null,null,null,null,null,null,null,null,null,null,null,null,null,null,null,null,null,null,null,"INDCONC","BIOETHANOL","BIOETHANOL.INDCONC",0]
[null,null,null,null,null,null,null,null,null,null,null,null,null,null,null,null,null,null,null,null,null,null,null,null,null,null,null,null,null,null,null,null,null,null,null,null,null,null,null,null,null,null,null,null,null,null,null,null,null,"STATDIFF","BIOETHANOL","BIOETHANOL.STATDIFF",0]
[null,null,null,null,null,null,null,null,null,null,null,null,null,null,null,null,null,null,null,null,null,null,null,null,null,null,null,null,null,null,null,null,null,null,null,null,null,null,null,null,null,null,null,null,null,null,null,null,null,"TOTTRANF","BIOETHANOL","BIOETHANOL.TOTTRANF",0,0]
[null,null,null,null,null,null,null,null,null,null,null,null,null,null,null,null,null,null,null,null,null,null,null,null,null,null,null,null,null,null,null,null,null,null,null,null,null,null,null,null,null,null,null,null,null,null,null,null,null,"MTOELEHEAT","BIOETHANOL","BIOETHANOL.MTOELEHEAT",0,0]
[null,null,null,null,null,null,null,null,null,null,null,null,null,null,null,null,null,null,null,null,null,null,null,null,null,null,null,null,null,null,null,null,null,null,null,null,null,null,null,null,null,null,null,null,null,null,null,null,null,"TBLENDGAS","BIOETHANOL","BIOETHANOL.TBLENDGAS",0,0]
[null,null,null,null,null,null,null,null,null,null,null,null,null,null,null,null,null,null,null,null,null,null,null,null,null,null,null,null,null,null,null,null,null,null,null,null,null,null,null,null,null,null,null,null,null,null,null,null,null,"TBLENDOIL","BIOETHANOL","BIOETHANOL.TBLENDOIL",0,0]
[null,null,null,null,null,null,null,null,null,null,null,null,null,null,null,null,null,null,null,null,null,null,null,null,null,null,null,null,null,null,null,null,null,null,null,null,null,null,null,null,null,null,null,null,null,null,null,null,null,"TOTENGY","BIOETHANOL","BIOETHANOL.TOTENGY",0,0]
[null,null,null,null,null,null,null,null,null,null,null,null,null,null,null,null,null,null,null,null,null,null,null,null,null,null,null,null,null,null,null,null,null,null,null,null,null,null,null,null,null,null,null,null,null,null,null,null,null,"DISTLOSS","BIOETHANOL","BIOETHANOL.DISTLOSS",0,0]
[null,null,null,null,null,null,null,null,null,null,null,null,null,null,null,null,null,null,null,null,null,null,null,null,null,null,null,null,null,null,null,null,null,null,null,null,null,null,null,null,null,null,null,null,null,null,null,null,null,"FINCONS","BIOETHANOL","BIOETHANOL.FINCONS",0]
[null,null,null,null,null,null,null,null,null,null,null,null,null,null,null,null,null,null,null,null,null,null,null,null,null,null,null,null,null,null,null,null,null,null,null,null,null,null,null,null,null,null,null,null,null,null,null,null,null,"FINECONS","BIOETHANOL","BIOETHANOL.FINECONS",0]
[null,null,null,null,null,null,null,null,null,null,null,null,null,null,null,null,null,null,null,null,null,null,null,null,null,null,null,null,null,null,null,null,null,null,null,null,null,null,null,null,null,null,null,null,null,null,null,null,null,"TOTIND","BIOETHANOL","BIOETHANOL.TOTIND",0,0]
[null,null,null,null,null,null,null,null,null,null,null,null,null,null,null,null,null,null,null,null,null,null,null,null,null,null,null,null,null,null,null,null,null,null,null,null,null,null,null,null,null,null,null,null,null,null,null,null,null,"TOTTRANS","BIOETHANOL","BIOETHANOL.TOTTRANS",0,0]
[null,null,null,null,null,null,null,null,null,null,null,null,null,null,null,null,null,null,null,null,null,null,null,null,null,null,null,null,null,null,null,null,null,null,null,null,null,null,null,null,null,null,null,null,null,null,null,null,null,"TOTOTHER","BIOETHANOL","BIOETHANOL.TOTOTHER",0,0]
[null,null,null,null,null,null,null,null,null,null,null,null,null,null,null,null,null,null,null,null,null,null,null,null,null,null,null,null,null,null,null,null,null,null,null,null,null,null,null,null,null,null,null,null,null,null,null,null,null,"COMMPUB","BIOETHANOL","BIOETHANOL.COMMPUB",0,0]
[null,null,null,null,null,null,null,null,null,null,null,null,null,null,null,null,null,null,null,null,null,null,null,null,null,null,null,null,null,null,null,null,null,null,null,null,null,null,null,null,null,null,null,null,null,null,null,null,null,"RESIDENT","BIOETHANOL","BIOETHANOL.RESIDENT",0,0]
[null,null,null,null,null,null,null,null,null,null,null,null,null,null,null,null,null,null,null,null,null,null,null,null,null,null,null,null,null,null,null,null,null,null,null,null,null,null,null,null,null,null,null,null,null,null,null,null,null,"INDPROD","BIOJETKERO","BIOJETKERO.INDPROD",0,0]
[null,null,null,null,null,null,null,null,null,null,null,null,null,null,null,null,null,null,null,null,null,null,null,null,null,null,null,null,null,null,null,null,null,null,null,null,null,null,null,null,null,null,null,null,null,null,null,null,null,"TOTIMPSB","BIOJETKERO","BIOJETKERO.TOTIMPSB",0,0]
[null,null,null,null,null,null,null,null,null,null,null,null,null,null,null,null,null,null,null,null,null,null,null,null,null,null,null,null,null,null,null,null,null,null,null,null,null,null,null,null,null,null,null,null,null,null,null,null,null,"TOTEXPSB","BIOJETKERO","BIOJETKERO.TOTEXPSB",0,0]
[null,null,null,null,null,null,null,null,null,null,null,null,null,null,null,null,null,null,null,null,null,null,null,null,null,null,null,null,null,null,null,null,null,null,null,null,null,null,null,null,null,null,null,null,null,null,null,null,null,"STCHANAT","BIOJETKERO","BIOJETKERO.STCHANAT",0,{"$f":"BA233","v":0}]
[null,null,null,null,null,null,null,null,null,null,null,null,null,null,null,null,null,null,null,null,null,null,null,null,null,null,null,null,null,null,null,null,null,null,null,null,null,null,null,null,null,null,null,null,null,null,null,null,null,"INDCONC","BIOJETKERO","BIOJETKERO.INDCONC",0]
[null,null,null,null,null,null,null,null,null,null,null,null,null,null,null,null,null,null,null,null,null,null,null,null,null,null,null,null,null,null,null,null,null,null,null,null,null,null,null,null,null,null,null,null,null,null,null,null,null,"STATDIFF","BIOJETKERO","BIOJETKERO.STATDIFF",0]
[null,null,null,null,null,null,null,null,null,null,null,null,null,null,null,null,null,null,null,null,null,null,null,null,null,null,null,null,null,null,null,null,null,null,null,null,null,null,null,null,null,null,null,null,null,null,null,null,null,"TOTTRANF","BIOJETKERO","BIOJETKERO.TOTTRANF",0,0]
[null,null,null,null,null,null,null,null,null,null,null,null,null,null,null,null,null,null,null,null,null,null,null,null,null,null,null,null,null,null,null,null,null,null,null,null,null,null,null,null,null,null,null,null,null,null,null,null,null,"MTOELEHEAT","BIOJETKERO","BIOJETKERO.MTOELEHEAT",0,0]
[null,null,null,null,null,null,null,null,null,null,null,null,null,null,null,null,null,null,null,null,null,null,null,null,null,null,null,null,null,null,null,null,null,null,null,null,null,null,null,null,null,null,null,null,null,null,null,null,null,"TBLENDGAS","BIOJETKERO","BIOJETKERO.TBLENDGAS",0,0]
[null,null,null,null,null,null,null,null,null,null,null,null,null,null,null,null,null,null,null,null,null,null,null,null,null,null,null,null,null,null,null,null,null,null,null,null,null,null,null,null,null,null,null,null,null,null,null,null,null,"TBLENDOIL","BIOJETKERO","BIOJETKERO.TBLENDOIL",0,0]
[null,null,null,null,null,null,null,null,null,null,null,null,null,null,null,null,null,null,null,null,null,null,null,null,null,null,null,null,null,null,null,null,null,null,null,null,null,null,null,null,null,null,null,null,null,null,null,null,null,"TOTENGY","BIOJETKERO","BIOJETKERO.TOTENGY",0,0]
[null,null,null,null,null,null,null,null,null,null,null,null,null,null,null,null,null,null,null,null,null,null,null,null,null,null,null,null,null,null,null,null,null,null,null,null,null,null,null,null,null,null,null,null,null,null,null,null,null,"DISTLOSS","BIOJETKERO","BIOJETKERO.DISTLOSS",0,0]
[null,null,null,null,null,null,null,null,null,null,null,null,null,null,null,null,null,null,null,null,null,null,null,null,null,null,null,null,null,null,null,null,null,null,null,null,null,null,null,null,null,null,null,null,null,null,null,null,null,"FINCONS","BIOJETKERO","BIOJETKERO.FINCONS",0]
[null,null,null,null,null,null,null,null,null,null,null,null,null,null,null,null,null,null,null,null,null,null,null,null,null,null,null,null,null,null,null,null,null,null,null,null,null,null,null,null,null,null,null,null,null,null,null,null,null,"FINECONS","BIOJETKERO","BIOJETKERO.FINECONS",0]
[null,null,null,null,null,null,null,null,null,null,null,null,null,null,null,null,null,null,null,null,null,null,null,null,null,null,null,null,null,null,null,null,null,null,null,null,null,null,null,null,null,null,null,null,null,null,null,null,null,"TOTIND","BIOJETKERO","BIOJETKERO.TOTIND",0,0]
[null,null,null,null,null,null,null,null,null,null,null,null,null,null,null,null,null,null,null,null,null,null,null,null,null,null,null,null,null,null,null,null,null,null,null,null,null,null,null,null,null,null,null,null,null,null,null,null,null,"TOTTRANS","BIOJETKERO","BIOJETKERO.TOTTRANS",0,0]
[null,null,null,null,null,null,null,null,null,null,null,null,null,null,null,null,null,null,null,null,null,null,null,null,null,null,null,null,null,null,null,null,null,null,null,null,null,null,null,null,null,null,null,null,null,null,null,null,null,"TOTOTHER","BIOJETKERO","BIOJETKERO.TOTOTHER",0,0]
[null,null,null,null,null,null,null,null,null,null,null,null,null,null,null,null,null,null,null,null,null,null,null,null,null,null,null,null,null,null,null,null,null,null,null,null,null,null,null,null,null,null,null,null,null,null,null,null,null,"COMMPUB","BIOJETKERO","BIOJETKERO.COMMPUB",0,0]
[null,null,null,null,null,null,null,null,null,null,null,null,null,null,null,null,null,null,null,null,null,null,null,null,null,null,null,null,null,null,null,null,null,null,null,null,null,null,null,null,null,null,null,null,null,null,null,null,null,"RESIDENT","BIOJETKERO","BIOJETKERO.RESIDENT",0,0]
[null,null,null,null,null,null,null,null,null,null,null,null,null,null,null,null,null,null,null,null,null,null,null,null,null,null,null,null,null,null,null,null,null,null,null,null,null,null,null,null,null,null,null,null,null,null,null,null,null,"INDPROD","BIODIESEL","BIODIESEL.INDPROD",0,0]
[null,null,null,null,null,null,null,null,null,null,null,null,null,null,null,null,null,null,null,null,null,null,null,null,null,null,null,null,null,null,null,null,null,null,null,null,null,null,null,null,null,null,null,null,null,null,null,null,null,"TOTIMPSB","BIODIESEL","BIODIESEL.TOTIMPSB",0,0]
[null,null,null,null,null,null,null,null,null,null,null,null,null,null,null,null,null,null,null,null,null,null,null,null,null,null,null,null,null,null,null,null,null,null,null,null,null,null,null,null,null,null,null,null,null,null,null,null,null,"TOTEXPSB","BIODIESEL","BIODIESEL.TOTEXPSB",0,0]
[null,null,null,null,null,null,null,null,null,null,null,null,null,null,null,null,null,null,null,null,null,null,null,null,null,null,null,null,null,null,null,null,null,null,null,null,null,null,null,null,null,null,null,null,null,null,null,null,null,"STCHANAT","BIODIESEL","BIODIESEL.STCHANAT",0,{"$f":"BA252","v":0}]
[null,null,null,null,null,null,null,null,null,null,null,null,null,null,null,null,null,null,null,null,null,null,null,null,null,null,null,null,null,null,null,null,null,null,null,null,null,null,null,null,null,null,null,null,null,null,null,null,null,"INDCONC","BIODIESEL","BIODIESEL.INDCONC",0]
[null,null,null,null,null,null,null,null,null,null,null,null,null,null,null,null,null,null,null,null,null,null,null,null,null,null,null,null,null,null,null,null,null,null,null,null,null,null,null,null,null,null,null,null,null,null,null,null,null,"STATDIFF","BIODIESEL","BIODIESEL.STATDIFF",0]
[null,null,null,null,null,null,null,null,null,null,null,null,null,null,null,null,null,null,null,null,null,null,null,null,null,null,null,null,null,null,null,null,null,null,null,null,null,null,null,null,null,null,null,null,null,null,null,null,null,"TOTTRANF","BIODIESEL","BIODIESEL.TOTTRANF",0,0]
[null,null,null,null,null,null,null,null,null,null,null,null,null,null,null,null,null,null,null,null,null,null,null,null,null,null,null,null,null,null,null,null,null,null,null,null,null,null,null,null,null,null,null,null,null,null,null,null,null,"MTOELEHEAT","BIODIESEL","BIODIESEL.MTOELEHEAT",0,0]
[null,null,null,null,null,null,null,null,null,null,null,null,null,null,null,null,null,null,null,null,null,null,null,null,null,null,null,null,null,null,null,null,null,null,null,null,null,null,null,null,null,null,null,null,null,null,null,null,null,"TBLENDGAS","BIODIESEL","BIODIESEL.TBLENDGAS",0,0]
[null,null,null,null,null,null,null,null,null,null,null,null,null,null,null,null,null,null,null,null,null,null,null,null,null,null,null,null,null,null,null,null,null,null,null,null,null,null,null,null,null,null,null,null,null,null,null,null,null,"TBLENDOIL","BIODIESEL","BIODIESEL.TBLENDOIL",0,0]
[null,null,null,null,null,null,null,null,null,null,null,null,null,null,null,null,null,null,null,null,null,null,null,null,null,null,null,null,null,null,null,null,null,null,null,null,null,null,null,null,null,null,null,null,null,null,null,null,null,"TOTENGY","BIODIESEL","BIODIESEL.TOTENGY",0,0]
[null,null,null,null,null,null,null,null,null,null,null,null,null,null,null,null,null,null,null,null,null,null,null,null,null,null,null,null,null,null,null,null,null,null,null,null,null,null,null,null,null,null,null,null,null,null,null,null,null,"DISTLOSS","BIODIESEL","BIODIESEL.DISTLOSS",0,0]
[null,null,null,null,null,null,null,null,null,null,null,null,null,null,null,null,null,null,null,null,null,null,null,null,null,null,null,null,null,null,null,null,null,null,null,null,null,null,null,null,null,null,null,null,null,null,null,null,null,"FINCONS","BIODIESEL","BIODIESEL.FINCONS",0]
[null,null,null,null,null,null,null,null,null,null,null,null,null,null,null,null,null,null,null,null,null,null,null,null,null,null,null,null,null,null,null,null,null,null,null,null,null,null,null,null,null,null,null,null,null,null,null,null,null,"FINECONS","BIODIESEL","BIODIESEL.FINECONS",0]
[null,null,null,null,null,null,null,null,null,null,null,null,null,null,null,null,null,null,null,null,null,null,null,null,null,null,null,null,null,null,null,null,null,null,null,null,null,null,null,null,null,null,null,null,null,null,null,null,null,"TOTIND","BIODIESEL","BIODIESEL.TOTIND",0,0]
[null,null,null,null,null,null,null,null,null,null,null,null,null,null,null,null,null,null,null,null,null,null,null,null,null,null,null,null,null,null,null,null,null,null,null,null,null,null,null,null,null,null,null,null,null,null,null,null,null,"TOTTRANS","BIODIESEL","BIODIESEL.TOTTRANS",0,0]
[null,null,null,null,null,null,null,null,null,null,null,null,null,null,null,null,null,null,null,null,null,null,null,null,null,null,null,null,null,null,null,null,null,null,null,null,null,null,null,null,null,null,null,null,null,null,null,null,null,"TOTOTHER","BIODIESEL","BIODIESEL.TOTOTHER",0,0]
[null,null,null,null,null,null,null,null,null,null,null,null,null,null,null,null,null,null,null,null,null,null,null,null,null,null,null,null,null,null,null,null,null,null,null,null,null,null,null,null,null,null,null,null,null,null,null,null,null,"COMMPUB","BIODIESEL","BIODIESEL.COMMPUB",0,0]
[null,null,null,null,null,null,null,null,null,null,null,null,null,null,null,null,null,null,null,null,null,null,null,null,null,null,null,null,null,null,null,null,null,null,null,null,null,null,null,null,null,null,null,null,null,null,null,null,null,"RESIDENT","BIODIESEL","BIODIESEL.RESIDENT",0,0]
[null,null,null,null,null,null,null,null,null,null,null,null,null,null,null,null,null,null,null,null,null,null,null,null,null,null,null,null,null,null,null,null,null,null,null,null,null,null,null,null,null,null,null,null,null,null,null,null,null,"INDPROD","OBIOLIQ","OBIOLIQ.INDPROD",0,0]
[null,null,null,null,null,null,null,null,null,null,null,null,null,null,null,null,null,null,null,null,null,null,null,null,null,null,null,null,null,null,null,null,null,null,null,null,null,null,null,null,null,null,null,null,null,null,null,null,null,"TOTIMPSB","OBIOLIQ","OBIOLIQ.TOTIMPSB",0,0]
[null,null,null,null,null,null,null,null,null,null,null,null,null,null,null,null,null,null,null,null,null,null,null,null,null,null,null,null,null,null,null,null,null,null,null,null,null,null,null,null,null,null,null,null,null,null,null,null,null,"TOTEXPSB","OBIOLIQ","OBIOLIQ.TOTEXPSB",0,0]
[null,null,null,null,null,null,null,null,null,null,null,null,null,null,null,null,null,null,null,null,null,null,null,null,null,null,null,null,null,null,null,null,null,null,null,null,null,null,null,null,null,null,null,null,null,null,null,null,null,"STCHANAT","OBIOLIQ","OBIOLIQ.STCHANAT",0,0]
[null,null,null,null,null,null,null,null,null,null,null,null,null,null,null,null,null,null,null,null,null,null,null,null,null,null,null,null,null,null,null,null,null,null,null,null,null,null,null,null,null,null,null,null,null,null,null,null,null,"INDCONC","OBIOLIQ","OBIOLIQ.INDCONC",0]
[null,null,null,null,null,null,null,null,null,null,null,null,null,null,null,null,null,null,null,null,null,null,null,null,null,null,null,null,null,null,null,null,null,null,null,null,null,null,null,null,null,null,null,null,null,null,null,null,null,"STATDIFF","OBIOLIQ","OBIOLIQ.STATDIFF",0]
[null,null,null,null,null,null,null,null,null,null,null,null,null,null,null,null,null,null,null,null,null,null,null,null,null,null,null,null,null,null,null,null,null,null,null,null,null,null,null,null,null,null,null,null,null,null,null,null,null,"TOTTRANF","OBIOLIQ","OBIOLIQ.TOTTRANF",0,0]
[null,null,null,null,null,null,null,null,null,null,null,null,null,null,null,null,null,null,null,null,null,null,null,null,null,null,null,null,null,null,null,null,null,null,null,null,null,null,null,null,null,null,null,null,null,null,null,null,null,"MTOELEHEAT","OBIOLIQ","OBIOLIQ.MTOELEHEAT",0,0]
[null,null,null,null,null,null,null,null,null,null,null,null,null,null,null,null,null,null,null,null,null,null,null,null,null,null,null,null,null,null,null,null,null,null,null,null,null,null,null,null,null,null,null,null,null,null,null,null,null,"TBLENDGAS","OBIOLIQ","OBIOLIQ.TBLENDGAS",0,0]
[null,null,null,null,null,null,null,null,null,null,null,null,null,null,null,null,null,null,null,null,null,null,null,null,null,null,null,null,null,null,null,null,null,null,null,null,null,null,null,null,null,null,null,null,null,null,null,null,null,"TBLENDOIL","OBIOLIQ","OBIOLIQ.TBLENDOIL",0,0]
[null,null,null,null,null,null,null,null,null,null,null,null,null,null,null,null,null,null,null,null,null,null,null,null,null,null,null,null,null,null,null,null,null,null,null,null,null,null,null,null,null,null,null,null,null,null,null,null,null,"TOTENGY","OBIOLIQ","OBIOLIQ.TOTENGY",0,0]
[null,null,null,null,null,null,null,null,null,null,null,null,null,null,null,null,null,null,null,null,null,null,null,null,null,null,null,null,null,null,null,null,null,null,null,null,null,null,null,null,null,null,null,null,null,null,null,null,null,"DISTLOSS","OBIOLIQ","OBIOLIQ.DISTLOSS",0,0]
[null,null,null,null,null,null,null,null,null,null,null,null,null,null,null,null,null,null,null,null,null,null,null,null,null,null,null,null,null,null,null,null,null,null,null,null,null,null,null,null,null,null,null,null,null,null,null,null,null,"FINCONS","OBIOLIQ","OBIOLIQ.FINCONS",0]
[null,null,null,null,null,null,null,null,null,null,null,null,null,null,null,null,null,null,null,null,null,null,null,null,null,null,null,null,null,null,null,null,null,null,null,null,null,null,null,null,null,null,null,null,null,null,null,null,null,"FINECONS","OBIOLIQ","OBIOLIQ.FINECONS",0]
[null,null,null,null,null,null,null,null,null,null,null,null,null,null,null,null,null,null,null,null,null,null,null,null,null,null,null,null,null,null,null,null,null,null,null,null,null,null,null,null,null,null,null,null,null,null,null,null,null,"TOTIND","OBIOLIQ","OBIOLIQ.TOTIND",0,0]
[null,null,null,null,null,null,null,null,null,null,null,null,null,null,null,null,null,null,null,null,null,null,null,null,null,null,null,null,null,null,null,null,null,null,null,null,null,null,null,null,null,null,null,null,null,null,null,null,null,"TOTTRANS","OBIOLIQ","OBIOLIQ.TOTTRANS",0,0]
[null,null,null,null,null,null,null,null,null,null,null,null,null,null,null,null,null,null,null,null,null,null,null,null,null,null,null,null,null,null,null,null,null,null,null,null,null,null,null,null,null,null,null,null,null,null,null,null,null,"TOTOTHER","OBIOLIQ","OBIOLIQ.TOTOTHER",0,0]
[null,null,null,null,null,null,null,null,null,null,null,null,null,null,null,null,null,null,null,null,null,null,null,null,null,null,null,null,null,null,null,null,null,null,null,null,null,null,null,null,null,null,null,null,null,null,null,null,null,"COMMPUB","OBIOLIQ","OBIOLIQ.COMMPUB",0,0]
[null,null,null,null,null,null,null,null,null,null,null,null,null,null,null,null,null,null,null,null,null,null,null,null,null,null,null,null,null,null,null,null,null,null,null,null,null,null,null,null,null,null,null,null,null,null,null,null,null,"RESIDENT","OBIOLIQ","OBIOLIQ.RESIDENT",0,0]
[null,null,null,null,null,null,null,null,null,null,null,null,null,null,null,null,null,null,null,null,null,null,null,null,null,null,null,null,null,null,null,null,null,null,null,null,null,null,null,null,null,null,null,null,null,null,null,null,null,"INDPROD","LANDFILL","LANDFILL.INDPROD",0,0]
[null,null,null,null,null,null,null,null,null,null,null,null,null,null,null,null,null,null,null,null,null,null,null,null,null,null,null,null,null,null,null,null,null,null,null,null,null,null,null,null,null,null,null,null,null,null,null,null,null,"INDPROD","SLUDGEGS","SLUDGEGS.INDPROD",0,0]
[null,null,null,null,null,null,null,null,null,null,null,null,null,null,null,null,null,null,null,null,null,null,null,null,null,null,null,null,null,null,null,null,null,null,null,null,null,null,null,null,null,null,null,null,null,null,null,null,null,"INDPROD","OBIOGAS","OBIOGAS.INDPROD",0,0]
[null,null,null,null,null,null,null,null,null,null,null,null,null,null,null,null,null,null,null,null,null,null,null,null,null,null,null,null,null,null,null,null,null,null,null,null,null,null,null,null,null,null,null,null,null,null,null,null,null,"INDPROD","BGTHERM","BGTHERM.INDPROD",0,0]

{"sheet":"Remarks","index":3,"n_rows":45,"n_cols":8,"rows_kept":45,"cut":false,"hidden":false,"merged":[]}
[]
[null,null,null,null,null,null,"Datatype","Item2"]
[null,{"$f":"\"REMARKS PAGE - \" & DataCountry & \" - \" & DataYear+1&\"E\"","v":"REMARKS PAGE -  - 1E"},null,null,null,null,"REMARKS"]
[null,null,null,null,null,null,"Item1","Product (none)"]
[null,null,null,null,null,null,"REMROW01"]
[null,null,null,null,null,null,"REMROW02"]
[null,null,null,null,null,null,"REMROW03"]
[null,null,null,null,null,null,"REMROW04"]
[null,null,null,null,null,null,"REMROW05"]
[null,null,null,null,null,null,"REMROW06"]
[null,null,null,null,null,null,"REMROW07"]
[null,null,null,null,null,null,"REMROW08"]
[null,null,null,null,null,null,"REMROW09"]
[null,null,null,null,null,null,"REMROW10"]
[null,null,null,null,null,null,"REMROW11"]
[null,null,null,null,null,null,"REMROW12"]
[null,null,null,null,null,null,"REMROW13"]
[null,null,null,null,null,null,"REMROW14"]
[null,null,null,null,null,null,"REMROW15"]
[null,null,null,null,null,null,"REMROW16"]
[null,null,null,null,null,null,"REMROW17"]
[null,null,null,null,null,null,"REMROW18"]
[null,null,null,null,null,null,"REMROW19"]
[null,null,null,null,null,null,"REMROW20"]
[null,null,null,null,null,null,"REMROW21"]
[null,null,null,null,null,null,"REMROW22"]
[null,null,null,null,null,null,"REMROW23"]
[null,null,null,null,null,null,"REMROW24"]
[null,null,null,null,null,null,"REMROW25"]
[null,null,null,null,null,null,"REMROW26"]
[null,null,null,null,null,null,"REMROW27"]
[null,null,null,null,null,null,"REMROW28"]
[null,null,null,null,null,null,"REMROW29"]
[null,null,null,null,null,null,"REMROW30"]
[null,null,null,null,null,null,"REMROW31"]
[null,null,null,null,null,null,"REMROW32"]
[null,null,null,null,null,null,"REMROW33"]
[null,null,null,null,null,null,"REMROW34"]
[null,null,null,null,null,null,"REMROW35"]
[null,null,null,null,null,null,"REMROW36"]
[null,null,null,null,null,null,"REMROW37"]
[null,null,null,null,null,null,"REMROW38"]
[null,null,null,null,null,null,"REMROW39"]
[null,null,null,null,null,null,"REMROW40"]
[null,null,null,null,null,null,null,"."]

{"sheet":"Definitions","index":4,"n_rows":79,"n_cols":3,"rows_kept":79,"cut":false,"hidden":false,"merged":[]}
[]
[null,null,"** DEFINITIONS OF RENEWABLE ENERGY AND WASTE SOURCES **"]
[]
[null,"1. Geothermal, Direct Use*"]
[null,"Energy available as heat emitted from within the earth’s crust, usually in the form of hot water or"]
[null,"steam. It is exploited at suitable sites directly as heat for district heating, agriculture etc."]
[]
[]
[null,"* Please note that this includes only geothermal energy consumed directly (and not to produce"]
[null,"  electricity and/or heat sold, which is reported in the Mini Electricity and Heat Questionnaire)"]
[]
[null,"2. Solar Thermal, Direct Use*"]
[null,"Solar radiation exploited for hot water production. Passive solar energy for the direct heating,"]
[null,"cooling and lighting of dwellings or other buildings is not included. Solar thermal can consist of equipment"]
[null,"for the production of domestic hot water or for the seasonal heating of swimming pools (e.g. flat plate"]
[null,"collectors, mainly of the thermosyphon type)"]
[]
[null,"* Please note that this includes only solar thermal energy consumed directly (and not to produce"]
[null,"electricity and/or heat sold, which is reported in the Mini Electricity and Heat Questionnaire)"]
[]
[null,"3. Industrial Waste (non-renewable)"]
[null,"Report wastes of industrial non-renewable origin (solids or liquids) combusted directly for the"]
[null,"production of electricity and/or heat. The quantity of fuel used should be reported on a net calorific"]
[null,"value basis. Renewable industrial waste should be reported in the Solid Biofuels, Biogases and/or"]
[null,"Liquid Biofuels categories. Waste incinerated without any heat recovery is excluded."]
[]
[null,"4. Municipal Waste"]
[]
[null,"Waste produced by households, hospitals and the tertiary sector (in general all waste that resembles"]
[null,"household waste) combusted at specific installations for meaningful energy purposes. Waste incinerated"]
[null,"without any heat recovery is excluded. The quantity of fuel used should be reported on a net calorific value "]
[null,"basis."]
[null,"•Renewable: Report that portion of municipal waste which is biological material."]
[]
[null,"•Non-Renewable: Report that portion of municipal waste which is non-biological material."]
[]
[null,"5. Solid biofuels excluding charcoal"]
[null,"It covers organic, non-fossil material of biological origin which may be used as fuel for heat production or "]
[null,"electricity generation. It comprises:"]
[null,"•Fuelwood, wood residues and by-products "]
[null,"•Wood pellets"]
[null,"•Black liquor"]
[null,"•Bagasse"]
[null,"•Animal waste"]
[null,"•Other vegetal materials and residuals"]
[null,"•Industrial waste (renewable)"]
[null,"The sub-categories of solid biofuels are not included in this questionnaire. For more detailed definitions "]
[null,"on these categories, you can refer to the Joint Annual Questionnaire Instructions located here:"]
[null,"https://www.iea.org/media/statistics/questionnaires/Renewables_questionnaire_instructions_2017_2021.pdf"]
[]
[null,"6. Charcoal"]
[null,"It covers the solid residue of the destructive distillation and pyrolysis of wood and other vegetal material."]
[]
[null,"7. Biogases"]
[null,"Gases composed principally of methane and carbon dioxide produced by anaerobic fermentation of biomass "]
[null,"or by thermal processes."]
[]
[null,"• Landfill Gas: formed by the anaerobic digestion of landfill waste. The quantity of fuel used should be"]
[null,"reported on a net calorific value basis."]
[]
[null,"• Sewage Sludge Gas: produced from the anaerobic fermentation of sewage sludge. The quantity of"]
[null,"fuel used should be reported on a net calorific value basis."]
[]
[null,"• Other biogases from anaerobic digestion: such as biogas produced from the anaerobic fermentation "]
[null,"of animal slurries and of wastes in abattoirs, breweries and other agro-food industries. The quantity of fuel "]
[null,"used should be reported on a net calorific value basis."]
[]
[null,"• Biogases from thermal processes: produced by gasification or pyrolysis of biomass."]
[]
[null,"8. Liquid Biofuels"]
[null,"The quantities of liquid biofuels reported in this category should relate only to the quantities of the"]
[null,"pure biofuel. Indeed, liquid biofuels blended with fossil fuels must be reported in the oil"]
[null,"questionnaire. Report under this category the following:"]
[]
[null,"• Biogasoline: Liquid biofuels suitable to be blended with or replace motor gasoline from fossil origin."]
[null,"Of which Bioethanol: this category includes bioethanol as part of biogasoline"]
[null,"• Biodiesels: Liquid biofuels suitable to be blended with or replace gas/diesel oil from fossil origin."]
[null,"• Bio jet kerosene: Liquid biofuels suitable to be blended with or replacing jet kerosene from fossil origin."]
[null,"• Other liquid biofuels: Liquid biofuels not included in any of the previous categories."]

{"sheet":"Data","index":5,"n_rows":23,"n_cols":18,"rows_kept":23,"cut":false,"hidden":false,"merged":[]}
["TIME"]
["COUNTRY"]
["PLANT","Total"]
[null,"GEOTHERM","SOLARTH","INDWASTE","MUNWASTER","MUNWASTEN","PRIMSBIO","CHARCOAL","BIOGASES","BIOGASOL","BIOETHANOL","BIOJETKERO","BIODIESEL","OBIOLIQ","LANDFILL","SLUDGEGS","OBIOGAS","BGTHERM"]
["INDPROD   ",0,0,0,0,0,0,0,0,0,0,0,0,0,0,0,0,0]
["TOTIMPSB  ",0,0,0,0,0,0,0,0,0,0,0,0,0,0,0,0,0]
["TOTEXPSB  ",0,0,0,0,0,0,0,0,0,0,0,0,0,0,0,0,0]
["STCHANAT  ",0,0,0,0,0,0,0,0,0,0,0,0,0,0,0,0,0]
["INDCONC   ",0,0,0,0,0,0,0,0,0,0,0,0,0,0,0,0,0]
["STATDIFF  ",0,0,0,0,0,0,0,0,0,0,0,0,0,0,0,0,0]
["TOTTRANF  ",0,0,0,0,0,0,0,0,0,0,0,0,0,0,0,0,0]
["MTOELEHEAT",0,0,0,0,0,0,0,0,0,0,0,0,0,0,0,0,0]
["TBLENDGAS ",0,0,0,0,0,0,0,0,0,0,0,0,0,0,0,0,0]
["TBLENDOIL ",0,0,0,0,0,0,0,0,0,0,0,0,0,0,0,0,0]
["TOTENGY   ",0,0,0,0,0,0,0,0,0,0,0,0,0,0,0,0,0]
["DISTLOSS  ",0,0,0,0,0,0,0,0,0,0,0,0,0,0,0,0,0]
["FINCONS   ",0,0,0,0,0,0,0,0,0,0,0,0,0,0,0,0,0]
["FINECONS  ",0,0,0,0,0,0,0,0,0,0,0,0,0,0,0,0,0]
["TOTIND    ",0,0,0,0,0,0,0,0,0,0,0,0,0,0,0,0,0]
["TOTTRANS  ",0,0,0,0,0,0,0,0,0,0,0,0,0,0,0,0,0]
["TOTOTHER  ",0,0,0,0,0,0,0,0,0,0,0,0,0,0,0,0,0]
["COMMPUB   ",0,0,0,0,0,0,0,0,0,0,0,0,0,0,0,0,0]
["RESIDENT  ",0,0,0,0,0,0,0,0,0,0,0,0,0,0,0,0,0]

{"sheet":"Param","index":6,"n_rows":91,"n_cols":44,"rows_kept":91,"cut":false,"hidden":false,"merged":[]}
[]
[null,"SETTINGS"]
[]
[]
[null,null,"ParamCountry / CountryList"]
[null,null,"Country","COUNTRY","00"]
[null,null,"Australia","AUSTRALI","AU"]
[null,null,"Austria","AUSTRIA","AT"]
[null,null,"Belgium","BELGIUM","BE"]
[null,null,"Canada","CANADA","CA"]
[null,null,"Chile","CHILE","CL"]
[null,null,"Colombia","COLOMBIA","CO"]
[null,null,"Czech Republic","CZECH","CZ"]
[null,null,"Denmark","DENMARK","DK"]
[null,null,"Estonia","ESTONIA","EE"]
[null,null,"Finland","FINLAND","FI",null,null,{"$f":"H12+H13-H14+H15","v":0},null,null,{"$f":"K12+K13-K14+K15","v":0},null,null,{"$f":"N12+N13-N14+N15","v":0},null,null,{"$f":"Q12+Q13-Q14+Q15","v":0},null,null,{"$f":"T12+T13-T14+T15","v":0},null,null,{"$f":"W12+W13-W14+W15","v":0},null,null,{"$f":"Z12+Z13-Z14+Z15","v":0},null,null,{"$f":"AC12+AC13-AC14+AC15","v":0},null,null,{"$f":"AF12+AF13-AF14+AF15","v":0},null,null,{"$f":"AI12+AI13-AI14+AI15","v":0},null,null,{"$f":"AL12+AL13-AL14+AL15","v":0},null,null,{"$f":"AO12+AO13-AO14+AO15","v":0},null,null,{"$f":"AR12+AR13-AR14+AR15","v":0}]
[null,null,"France","FRANCE","FR",null,null,{"$f":"H16-H18-H22-H23-H25","v":0},null,null,{"$f":"K16-K18-K22-K23-K25","v":0},null,null,{"$f":"N16-N18-N22-N23-N25","v":0},null,null,{"$f":"Q16-Q18-Q22-Q23-Q25","v":0},null,null,{"$f":"T16-T18-T22-T23-T25","v":0},null,null,{"$f":"W16-W18-W22-W23-W25","v":0},null,null,{"$f":"Z16-Z18-Z22-Z23-Z25","v":0},null,null,{"$f":"AC16-AC18-AC22-AC23-AC25","v":0},null,null,{"$f":"AF16-AF18-AF22-AF23-AF25","v":0},null,null,{"$f":"AI16-AI18-AI22-AI23-AI25","v":0},null,null,{"$f":"AL16-AL18-AL22-AL23-AL25","v":0},null,null,{"$f":"AO16-AO18-AO22-AO23-AO25","v":0},null,null,{"$f":"AR16-AR18-AR22-AR23-AR25","v":0}]
[null,null,"Germany","GERMANY","DE"]
[null,null,"Greece","GREECE","GR"]
[null,null,"Hungary","HUNGARY","HU"]
[null,null,"Iceland","ICELAND","IS"]
[null,null,"Israel","ISRAEL","IL"]
[null,null,"Ireland","IRELAND","IE"]
[null,null,"Italy","ITALY","IT",null,null,{"$f":"H16-H17-H18-H22-H23","v":0},null,null,{"$f":"K16-K17-K18-K22-K23","v":0},null,null,{"$f":"N16-N17-N18-N22-N23","v":0},null,null,{"$f":"Q16-Q17-Q18-Q22-Q23","v":0},null,null,{"$f":"T16-T17-T18-T22-T23","v":0},null,null,{"$f":"W16-W17-W18-W22-W23","v":0},null,null,{"$f":"Z16-Z17-Z18-Z22-Z23","v":0},null,null,{"$f":"AC16-AC17-AC18-AC22-AC23","v":0},null,null,{"$f":"AF16-AF17-AF18-AF22-AF23","v":0},null,null,{"$f":"AI16-AI17-AI18-AI22-AI23","v":0},null,null,{"$f":"AL16-AL17-AL18-AL22-AL23","v":0},null,null,{"$f":"AO16-AO17-AO18-AO22-AO23","v":0},null,null,{"$f":"AR16-AR17-AR18-AR22-AR23","v":0}]
[null,null,"Japan","JAPAN","JP",null,null,{"$f":"H26+H27+H28","v":0},null,null,{"$f":"K26+K27+K28","v":0},null,null,{"$f":"N26+N27+N28","v":0},null,null,{"$f":"Q26+Q27+Q28","v":0},null,null,{"$f":"T26+T27+T28","v":0},null,null,{"$f":"W26+W27+W28","v":0},null,null,{"$f":"Z26+Z27+Z28","v":0},null,null,{"$f":"AC26+AC27+AC28","v":0},null,null,{"$f":"AF26+AF27+AF28","v":0},null,null,{"$f":"AI26+AI27+AI28","v":0},null,null,{"$f":"AL26+AL27+AL28","v":0},null,null,{"$f":"AO26+AO27+AO28","v":0},null,null,{"$f":"AR26+AR27+AR28","v":0}]
[null,null,"Korea","KOREA","KR"]
[null,null,"Latvia","LATVIA","LV"]
[null,null,"Lithuania","LITHUANIA","LT"]
[null,null,"Luxembourg","LUXEMBOU","LU"]
[null,null,"Mexico","MEXICO","MX"]
[null,null,"Netherlands","NETHLAND","NL"]
[null,null,"New Zealand","NZ","NZ"]
[null,null,"Norway","NORWAY","NO"]
[null,null,"Poland","POLAND","PL"]
[null,null,"Portugal","PORTUGAL","PT"]
[null,null,"Russia","RUSSIA","RU"]
[null,null,"Slovak Republic","SLOVAKIA","SK"]
[null,null,"Slovenia","SLOVENIA","SI"]
[null,null,"Spain","SPAIN","ES"]
[null,null,"Sweden","SWEDEN","SE"]
[null,null,"Switzerland","SWITLAND","CH"]
[null,null,"Turkey","TURKEY","TR"]
[null,null,"United Kingdom","UK","GB"]
[null,null,"United States","USA","US"]
[null,null,"Albania","ALBANIA","AL"]
[null,null,"Armenia","ARMENIA","AM"]
[null,null,"Azerbaijan","AZERBAIJAN","AZ"]
[null,null,"Belarus","BELARUS","BY"]
[null,null,"Bosnia and Herzegovina","BOSNIAHERZ","BA"]
[null,null,"Bulgaria","BULGARIA","BG"]
[null,null,"Croatia","CROATIA","HR"]
[null,null,"Cyprus","CYPRUS","CY"]
[null,null,"Republic of North Macedonia","NORTHMACED","MK"]
[null,null,"Georgia","GEORGIA","GE"]
[null,null,"Kazakhstan","KAZAKHSTAN","KZ"]
[null,null,"Kosovo","KOSOVO","XK"]
[null,null,"Kyrgyzstan","KYRGYZSTAN","KG"]
[null,null,"Malta","MALTA","MT"]
[null,null,"Mmoldova","MMOLDOVA"]
[null,null,"Republic of Moldova","MOLDOVA","MD"]
[null,null,"Montenegro","MONTENEGRO","ME"]
[null,null,"Romania","ROMANIA","RO"]
[null,null,"Serbia","SERBIA","RS"]
[null,null,"Tajikistan","TAJIKISTAN","TJ"]
[null,null,"Tunisia","TUNISIA","TN"]
[null,null,"Turkmenistan","TURKMENIST","TM"]
[null,null,"Ukraine","UKRAINE","UA"]
[null,null,"Uzbekistan","UZBEKISTAN","UZ"]
[null,null,"People's Republic of China","CHINA","CN"]
[null,null,"Indonesia","INDONESIA","ID"]
[null,null,"Singapore","SINGAPORE","SG"]
[null,null,"Thailand","THAILAND","TH"]
[null,null,"Morocco","MOROCCO","MA"]
[null,null,"India","INDIA","IN"]
[null,null,"South Africa","SOUTHAFRIC","ZA"]
[null,null,"Brazil","BRAZIL","BR"]
[]
[null,null,"MsgAfterRounding : ",false]
[]
[]
[null,"CALCULATIONS",null,null,null,"ê","DO NOT TOUCH!",null,null,null,"ê"]
[]
[]
[null,null,"CountryIndex: ",{"$f":"IF(DataCountry=0,1,IF(ISERROR(MATCH(DataCountry,CountryList,0)),1,MATCH(DataCountry,CountryList,0)))","v":1}]
[null,null,"CountryIeaCode: ",{"$f":"INDEX(CountryIeaList,CountryIndex,1)","v":"COUNTRY"}]
[null,null,"CountryIsoCode: ",{"$f":"INDEX(CountryIsoList,CountryIndex,1)","v":"00"}]
[null,null,"CountryName: ",{"$f":"INDEX(CountryList,CountryIndex,1)","v":"Country"}]
[]
[null,null,"CsvCountry:","BY","Paste by VBA"]
[null,null,null,{"$f":"IF(ISERROR(MATCH(CsvCountry,CountryIeaList,0))=FALSE,MATCH(CsvCountry,CountryIeaList,0),IF(ISERROR(MATCH(CsvCountry,CountryIsoList,0))=FALSE,MATCH(CsvCountry,CountryIsoList,0),0))","v":43}]
[null,null,"CsvCountryName:",{"$f":"IF(ISERROR(INDEX(ParamCountry,D90,1)),\"UNKNOWN\",INDEX(ParamCountry,D90,1))","v":"Belarus"},"Read by VBA"]

{"sheet":"Dataload","index":7,"n_rows":254,"n_cols":5,"rows_kept":254,"cut":false,"hidden":false,"merged":[]}
["TIME",{"$f":"Note!B9","v":"1E"}]
["COUNTRY",{"$f":"DataCountry","v":0}]
[null,"TOTAL"]
["GEOTHERM.INDPROD",{"$f":"IFERROR(INDEX(GEOTHERM_VAL,MATCH(C$4,Item1Tab1,0)),0)","v":0},"INDPROD"]
["GEOTHERM.TOTIMPSB",{"$f":"IFERROR(INDEX(GEOTHERM_VAL,MATCH(C$5,Item1Tab1,0)),0)","v":0},"TOTIMPSB"]
["GEOTHERM.TOTEXPSB",{"$f":"IFERROR(INDEX(GEOTHERM_VAL,MATCH(C$6,Item1Tab1,0)),0)","v":0},"TOTEXPSB"]
["GEOTHERM.STCHANAT",{"$f":"IFERROR(INDEX(GEOTHERM_VAL,MATCH(C$7,Item1Tab1,0)),0)","v":0},"STCHANAT"]
["GEOTHERM.INDCONC",{"$f":"IFERROR(INDEX(GEOTHERM_VAL,MATCH(C$8,Item1Tab1,0)),0)","v":0},"INDCONC"]
["GEOTHERM.STATDIFF",{"$f":"IFERROR(INDEX(GEOTHERM_VAL,MATCH(C$9,Item1Tab1,0)),0)","v":0},"STATDIFF"]
["GEOTHERM.TOTTRANF",{"$f":"IFERROR(INDEX(GEOTHERM_VAL,MATCH(C$10,Item1Tab1,0)),0)","v":0},"TOTTRANF"]
["GEOTHERM.MTOELEHEAT",{"$f":"IFERROR(INDEX(GEOTHERM_VAL,MATCH(C$11,Item1Tab1,0)),0)","v":0},"MTOELEHEAT",null,0]
["GEOTHERM.TBLENDGAS",{"$f":"IFERROR(INDEX(GEOTHERM_VAL,MATCH(C$12,Item1Tab1,0)),0)","v":0},"TBLENDGAS"]
["GEOTHERM.TBLENDOIL",{"$f":"IFERROR(INDEX(GEOTHERM_VAL,MATCH(C$13,Item1Tab1,0)),0)","v":0},"TBLENDOIL"]
["GEOTHERM.TOTENGY",{"$f":"IFERROR(INDEX(GEOTHERM_VAL,MATCH(C$14,Item1Tab1,0)),0)","v":0},"TOTENGY"]
["GEOTHERM.DISTLOSS",{"$f":"IFERROR(INDEX(GEOTHERM_VAL,MATCH(C$15,Item1Tab1,0)),0)","v":0},"DISTLOSS"]
["GEOTHERM.FINCONS",{"$f":"IFERROR(INDEX(GEOTHERM_VAL,MATCH(C$16,Item1Tab1,0)),0)","v":0},"FINCONS"]
["GEOTHERM.FINECONS",{"$f":"IFERROR(INDEX(GEOTHERM_VAL,MATCH(C$17,Item1Tab1,0)),0)","v":0},"FINECONS"]
["GEOTHERM.TOTIND",{"$f":"IFERROR(INDEX(GEOTHERM_VAL,MATCH(C$18,Item1Tab1,0)),0)","v":0},"TOTIND"]
["GEOTHERM.TOTTRANS",{"$f":"IFERROR(INDEX(GEOTHERM_VAL,MATCH(C$19,Item1Tab1,0)),0)","v":0},"TOTTRANS"]
["GEOTHERM.TOTOTHER",{"$f":"IFERROR(INDEX(GEOTHERM_VAL,MATCH(C$20,Item1Tab1,0)),0)","v":0},"TOTOTHER"]
["GEOTHERM.COMMPUB",{"$f":"IFERROR(INDEX(GEOTHERM_VAL,MATCH(C$21,Item1Tab1,0)),0)","v":0},"COMMPUB"]
["GEOTHERM.RESIDENT",{"$f":"IFERROR(INDEX(GEOTHERM_VAL,MATCH(C$22,Item1Tab1,0)),0)","v":0},"RESIDENT"]
["SOLARTH.INDPROD",{"$f":"IFERROR(INDEX(SOLARTH_VAL,MATCH(C$4,Item1Tab1,0)),0)","v":0}]
["SOLARTH.TOTIMPSB",{"$f":"IFERROR(INDEX(SOLARTH_VAL,MATCH(C$5,Item1Tab1,0)),0)","v":0}]
["SOLARTH.TOTEXPSB",{"$f":"IFERROR(INDEX(SOLARTH_VAL,MATCH(C$6,Item1Tab1,0)),0)","v":0}]
["SOLARTH.STCHANAT",{"$f":"IFERROR(INDEX(SOLARTH_VAL,MATCH(C$7,Item1Tab1,0)),0)","v":0}]
["SOLARTH.INDCONC",{"$f":"IFERROR(INDEX(SOLARTH_VAL,MATCH(C$8,Item1Tab1,0)),0)","v":0}]
["SOLARTH.STATDIFF",{"$f":"IFERROR(INDEX(SOLARTH_VAL,MATCH(C$9,Item1Tab1,0)),0)","v":0}]
["SOLARTH.TOTTRANF",{"$f":"IFERROR(INDEX(SOLARTH_VAL,MATCH(C$10,Item1Tab1,0)),0)","v":0}]
["SOLARTH.MTOELEHEAT",{"$f":"IFERROR(INDEX(SOLARTH_VAL,MATCH(C$11,Item1Tab1,0)),0)","v":0}]
["SOLARTH.TBLENDGAS",{"$f":"IFERROR(INDEX(SOLARTH_VAL,MATCH(C$12,Item1Tab1,0)),0)","v":0}]
["SOLARTH.TBLENDOIL",{"$f":"IFERROR(INDEX(SOLARTH_VAL,MATCH(C$13,Item1Tab1,0)),0)","v":0}]
["SOLARTH.TOTENGY",{"$f":"IFERROR(INDEX(SOLARTH_VAL,MATCH(C$14,Item1Tab1,0)),0)","v":0}]
["SOLARTH.DISTLOSS",{"$f":"IFERROR(INDEX(SOLARTH_VAL,MATCH(C$15,Item1Tab1,0)),0)","v":0}]
["SOLARTH.FINCONS",{"$f":"IFERROR(INDEX(SOLARTH_VAL,MATCH(C$16,Item1Tab1,0)),0)","v":0}]
["SOLARTH.FINECONS",{"$f":"IFERROR(INDEX(SOLARTH_VAL,MATCH(C$17,Item1Tab1,0)),0)","v":0}]
["SOLARTH.TOTIND",{"$f":"IFERROR(INDEX(SOLARTH_VAL,MATCH(C$18,Item1Tab1,0)),0)","v":0}]
["SOLARTH.TOTTRANS",{"$f":"IFERROR(INDEX(SOLARTH_VAL,MATCH(C$19,Item1Tab1,0)),0)","v":0}]
["SOLARTH.TOTOTHER",{"$f":"IFERROR(INDEX(SOLARTH_VAL,MATCH(C$20,Item1Tab1,0)),0)","v":0}]
["SOLARTH.COMMPUB",{"$f":"IFERROR(INDEX(SOLARTH_VAL,MATCH(C$21,Item1Tab1,0)),0)","v":0}]
["SOLARTH.RESIDENT",{"$f":"IFERROR(INDEX(SOLARTH_VAL,MATCH(C$22,Item1Tab1,0)),0)","v":0}]
["INDWASTE.INDPROD",{"$f":"IFERROR(INDEX(INDWASTE_VAL,MATCH(C$4,Item1Tab1,0)),0)","v":0}]
["INDWASTE.TOTIMPSB",{"$f":"IFERROR(INDEX(INDWASTE_VAL,MATCH(C$5,Item1Tab1,0)),0)","v":0}]
["INDWASTE.TOTEXPSB",{"$f":"IFERROR(INDEX(INDWASTE_VAL,MATCH(C$6,Item1Tab1,0)),0)","v":0}]
["INDWASTE.STCHANAT",{"$f":"IFERROR(INDEX(INDWASTE_VAL,MATCH(C$7,Item1Tab1,0)),0)","v":0}]
["INDWASTE.INDCONC",{"$f":"IFERROR(INDEX(INDWASTE_VAL,MATCH(C$8,Item1Tab1,0)),0)","v":0}]
["INDWASTE.STATDIFF",{"$f":"IFERROR(INDEX(INDWASTE_VAL,MATCH(C$9,Item1Tab1,0)),0)","v":0}]
["INDWASTE.TOTTRANF",{"$f":"IFERROR(INDEX(INDWASTE_VAL,MATCH(C$10,Item1Tab1,0)),0)","v":0}]
["INDWASTE.MTOELEHEAT",{"$f":"IFERROR(INDEX(INDWASTE_VAL,MATCH(C$11,Item1Tab1,0)),0)","v":0}]
["INDWASTE.TBLENDGAS",{"$f":"IFERROR(INDEX(INDWASTE_VAL,MATCH(C$12,Item1Tab1,0)),0)","v":0}]
["INDWASTE.TBLENDOIL",{"$f":"IFERROR(INDEX(INDWASTE_VAL,MATCH(C$13,Item1Tab1,0)),0)","v":0}]
["INDWASTE.TOTENGY",{"$f":"IFERROR(INDEX(INDWASTE_VAL,MATCH(C$14,Item1Tab1,0)),0)","v":0}]
["INDWASTE.DISTLOSS",{"$f":"IFERROR(INDEX(INDWASTE_VAL,MATCH(C$15,Item1Tab1,0)),0)","v":0}]
["INDWASTE.FINCONS",{"$f":"IFERROR(INDEX(INDWASTE_VAL,MATCH(C$16,Item1Tab1,0)),0)","v":0}]
["INDWASTE.FINECONS",{"$f":"IFERROR(INDEX(INDWASTE_VAL,MATCH(C$17,Item1Tab1,0)),0)","v":0}]
["INDWASTE.TOTIND",{"$f":"IFERROR(INDEX(INDWASTE_VAL,MATCH(C$18,Item1Tab1,0)),0)","v":0}]
["INDWASTE.TOTTRANS",{"$f":"IFERROR(INDEX(INDWASTE_VAL,MATCH(C$19,Item1Tab1,0)),0)","v":0}]
["INDWASTE.TOTOTHER",{"$f":"IFERROR(INDEX(INDWASTE_VAL,MATCH(C$20,Item1Tab1,0)),0)","v":0}]
["INDWASTE.COMMPUB",{"$f":"IFERROR(INDEX(INDWASTE_VAL,MATCH(C$21,Item1Tab1,0)),0)","v":0}]
["INDWASTE.RESIDENT",{"$f":"IFERROR(INDEX(INDWASTE_VAL,MATCH(C$22,Item1Tab1,0)),0)","v":0}]
["MUNWASTER.INDPROD",{"$f":"IFERROR(INDEX(MUNWASTER_VAL,MATCH(C$4,Item1Tab1,0)),0)","v":0}]
["MUNWASTER.TOTIMPSB",{"$f":"IFERROR(INDEX(MUNWASTER_VAL,MATCH(C$5,Item1Tab1,0)),0)","v":0}]
["MUNWASTER.TOTEXPSB",{"$f":"IFERROR(INDEX(MUNWASTER_VAL,MATCH(C$6,Item1Tab1,0)),0)","v":0}]
["MUNWASTER.STCHANAT",{"$f":"IFERROR(INDEX(MUNWASTER_VAL,MATCH(C$7,Item1Tab1,0)),0)","v":0}]
["MUNWASTER.INDCONC",{"$f":"IFERROR(INDEX(MUNWASTER_VAL,MATCH(C$8,Item1Tab1,0)),0)","v":0}]
["MUNWASTER.STATDIFF",{"$f":"IFERROR(INDEX(MUNWASTER_VAL,MATCH(C$9,Item1Tab1,0)),0)","v":0}]
["MUNWASTER.TOTTRANF",{"$f":"IFERROR(INDEX(MUNWASTER_VAL,MATCH(C$10,Item1Tab1,0)),0)","v":0}]
["MUNWASTER.MTOELEHEAT",{"$f":"IFERROR(INDEX(MUNWASTER_VAL,MATCH(C$11,Item1Tab1,0)),0)","v":0}]
["MUNWASTER.TBLENDGAS",{"$f":"IFERROR(INDEX(MUNWASTER_VAL,MATCH(C$12,Item1Tab1,0)),0)","v":0}]
["MUNWASTER.TBLENDOIL",{"$f":"IFERROR(INDEX(MUNWASTER_VAL,MATCH(C$13,Item1Tab1,0)),0)","v":0}]
["MUNWASTER.TOTENGY",{"$f":"IFERROR(INDEX(MUNWASTER_VAL,MATCH(C$14,Item1Tab1,0)),0)","v":0}]
["MUNWASTER.DISTLOSS",{"$f":"IFERROR(INDEX(MUNWASTER_VAL,MATCH(C$15,Item1Tab1,0)),0)","v":0}]
["MUNWASTER.FINCONS",{"$f":"IFERROR(INDEX(MUNWASTER_VAL,MATCH(C$16,Item1Tab1,0)),0)","v":0}]
["MUNWASTER.FINECONS",{"$f":"IFERROR(INDEX(MUNWASTER_VAL,MATCH(C$17,Item1Tab1,0)),0)","v":0}]
["MUNWASTER.TOTIND",{"$f":"IFERROR(INDEX(MUNWASTER_VAL,MATCH(C$18,Item1Tab1,0)),0)","v":0}]
["MUNWASTER.TOTTRANS",{"$f":"IFERROR(INDEX(MUNWASTER_VAL,MATCH(C$19,Item1Tab1,0)),0)","v":0}]
["MUNWASTER.TOTOTHER",{"$f":"IFERROR(INDEX(MUNWASTER_VAL,MATCH(C$20,Item1Tab1,0)),0)","v":0}]
["MUNWASTER.COMMPUB",{"$f":"IFERROR(INDEX(MUNWASTER_VAL,MATCH(C$21,Item1Tab1,0)),0)","v":0}]
["MUNWASTER.RESIDENT",{"$f":"IFERROR(INDEX(MUNWASTER_VAL,MATCH(C$22,Item1Tab1,0)),0)","v":0}]
["MUNWASTEN.INDPROD",{"$f":"IFERROR(INDEX(MUNWASTEN_VAL,MATCH(C$4,Item1Tab1,0)),0)","v":0}]
["MUNWASTEN.TOTIMPSB",{"$f":"IFERROR(INDEX(MUNWASTEN_VAL,MATCH(C$5,Item1Tab1,0)),0)","v":0}]
["MUNWASTEN.TOTEXPSB",{"$f":"IFERROR(INDEX(MUNWASTEN_VAL,MATCH(C$6,Item1Tab1,0)),0)","v":0}]
["MUNWASTEN.STCHANAT",{"$f":"IFERROR(INDEX(MUNWASTEN_VAL,MATCH(C$7,Item1Tab1,0)),0)","v":0}]
["MUNWASTEN.INDCONC",{"$f":"IFERROR(INDEX(MUNWASTEN_VAL,MATCH(C$8,Item1Tab1,0)),0)","v":0}]
["MUNWASTEN.STATDIFF",{"$f":"IFERROR(INDEX(MUNWASTEN_VAL,MATCH(C$9,Item1Tab1,0)),0)","v":0}]
["MUNWASTEN.TOTTRANF",{"$f":"IFERROR(INDEX(MUNWASTEN_VAL,MATCH(C$10,Item1Tab1,0)),0)","v":0}]
["MUNWASTEN.MTOELEHEAT",{"$f":"IFERROR(INDEX(MUNWASTEN_VAL,MATCH(C$11,Item1Tab1,0)),0)","v":0}]
["MUNWASTEN.TBLENDGAS",{"$f":"IFERROR(INDEX(MUNWASTEN_VAL,MATCH(C$12,Item1Tab1,0)),0)","v":0}]
["MUNWASTEN.TBLENDOIL",{"$f":"IFERROR(INDEX(MUNWASTEN_VAL,MATCH(C$13,Item1Tab1,0)),0)","v":0}]
["MUNWASTEN.TOTENGY",{"$f":"IFERROR(INDEX(MUNWASTEN_VAL,MATCH(C$14,Item1Tab1,0)),0)","v":0}]
["MUNWASTEN.DISTLOSS",{"$f":"IFERROR(INDEX(MUNWASTEN_VAL,MATCH(C$15,Item1Tab1,0)),0)","v":0}]
["MUNWASTEN.FINCONS",{"$f":"IFERROR(INDEX(MUNWASTEN_VAL,MATCH(C$16,Item1Tab1,0)),0)","v":0}]
["MUNWASTEN.FINECONS",{"$f":"IFERROR(INDEX(MUNWASTEN_VAL,MATCH(C$17,Item1Tab1,0)),0)","v":0}]
["MUNWASTEN.TOTIND",{"$f":"IFERROR(INDEX(MUNWASTEN_VAL,MATCH(C$18,Item1Tab1,0)),0)","v":0}]
["MUNWASTEN.TOTTRANS",{"$f":"IFERROR(INDEX(MUNWASTEN_VAL,MATCH(C$19,Item1Tab1,0)),0)","v":0}]
["MUNWASTEN.TOTOTHER",{"$f":"IFERROR(INDEX(MUNWASTEN_VAL,MATCH(C$20,Item1Tab1,0)),0)","v":0}]
["MUNWASTEN.COMMPUB",{"$f":"IFERROR(INDEX(MUNWASTEN_VAL,MATCH(C$21,Item1Tab1,0)),0)","v":0}]
["MUNWASTEN.RESIDENT",{"$f":"IFERROR(INDEX(MUNWASTEN_VAL,MATCH(C$22,Item1Tab1,0)),0)","v":0}]
["PRIMSBIO.INDPROD",{"$f":"IFERROR(INDEX(PRIMSBIO_VAL,MATCH(C$4,Item1Tab1,0)),0)","v":0}]
["PRIMSBIO.TOTIMPSB",{"$f":"IFERROR(INDEX(PRIMSBIO_VAL,MATCH(C$5,Item1Tab1,0)),0)","v":0}]
["PRIMSBIO.TOTEXPSB",{"$f":"IFERROR(INDEX(PRIMSBIO_VAL,MATCH(C$6,Item1Tab1,0)),0)","v":0}]
["PRIMSBIO.STCHANAT",{"$f":"IFERROR(INDEX(PRIMSBIO_VAL,MATCH(C$7,Item1Tab1,0)),0)","v":0}]
["PRIMSBIO.INDCONC",{"$f":"IFERROR(INDEX(PRIMSBIO_VAL,MATCH(C$8,Item1Tab1,0)),0)","v":0}]
["PRIMSBIO.STATDIFF",{"$f":"IFERROR(INDEX(PRIMSBIO_VAL,MATCH(C$9,Item1Tab1,0)),0)","v":0}]
["PRIMSBIO.TOTTRANF",{"$f":"IFERROR(INDEX(PRIMSBIO_VAL,MATCH(C$10,Item1Tab1,0)),0)","v":0}]
["PRIMSBIO.MTOELEHEAT",{"$f":"IFERROR(INDEX(PRIMSBIO_VAL,MATCH(C$11,Item1Tab1,0)),0)","v":0}]
["PRIMSBIO.TBLENDGAS",{"$f":"IFERROR(INDEX(PRIMSBIO_VAL,MATCH(C$12,Item1Tab1,0)),0)","v":0}]
["PRIMSBIO.TBLENDOIL",{"$f":"IFERROR(INDEX(PRIMSBIO_VAL,MATCH(C$13,Item1Tab1,0)),0)","v":0}]
["PRIMSBIO.TOTENGY",{"$f":"IFERROR(INDEX(PRIMSBIO_VAL,MATCH(C$14,Item1Tab1,0)),0)","v":0}]
["PRIMSBIO.DISTLOSS",{"$f":"IFERROR(INDEX(PRIMSBIO_VAL,MATCH(C$15,Item1Tab1,0)),0)","v":0}]
["PRIMSBIO.FINCONS",{"$f":"IFERROR(INDEX(PRIMSBIO_VAL,MATCH(C$16,Item1Tab1,0)),0)","v":0}]
["PRIMSBIO.FINECONS",{"$f":"IFERROR(INDEX(PRIMSBIO_VAL,MATCH(C$17,Item1Tab1,0)),0)","v":0}]
["PRIMSBIO.TOTIND",{"$f":"IFERROR(INDEX(PRIMSBIO_VAL,MATCH(C$18,Item1Tab1,0)),0)","v":0}]
["PRIMSBIO.TOTTRANS",{"$f":"IFERROR(INDEX(PRIMSBIO_VAL,MATCH(C$19,Item1Tab1,0)),0)","v":0}]
["PRIMSBIO.TOTOTHER",{"$f":"IFERROR(INDEX(PRIMSBIO_VAL,MATCH(C$20,Item1Tab1,0)),0)","v":0}]
["PRIMSBIO.COMMPUB",{"$f":"IFERROR(INDEX(PRIMSBIO_VAL,MATCH(C$21,Item1Tab1,0)),0)","v":0}]
["PRIMSBIO.RESIDENT",{"$f":"IFERROR(INDEX(PRIMSBIO_VAL,MATCH(C$22,Item1Tab1,0)),0)","v":0}]
["CHARCOAL.INDPROD",{"$f":"IFERROR(INDEX(CHARCOAL_VAL,MATCH(C$4,Item1Tab1,0)),0)","v":0}]
["CHARCOAL.TOTIMPSB",{"$f":"IFERROR(INDEX(CHARCOAL_VAL,MATCH(C$5,Item1Tab1,0)),0)","v":0}]
["CHARCOAL.TOTEXPSB",{"$f":"IFERROR(INDEX(CHARCOAL_VAL,MATCH(C$6,Item1Tab1,0)),0)","v":0}]
["CHARCOAL.STCHANAT",{"$f":"IFERROR(INDEX(CHARCOAL_VAL,MATCH(C$7,Item1Tab1,0)),0)","v":0}]
["CHARCOAL.INDCONC",{"$f":"IFERROR(INDEX(CHARCOAL_VAL,MATCH(C$8,Item1Tab1,0)),0)","v":0}]
["CHARCOAL.STATDIFF",{"$f":"IFERROR(INDEX(CHARCOAL_VAL,MATCH(C$9,Item1Tab1,0)),0)","v":0}]
["CHARCOAL.TOTTRANF",{"$f":"IFERROR(INDEX(CHARCOAL_VAL,MATCH(C$10,Item1Tab1,0)),0)","v":0}]
["CHARCOAL.MTOELEHEAT",{"$f":"IFERROR(INDEX(CHARCOAL_VAL,MATCH(C$11,Item1Tab1,0)),0)","v":0}]
["CHARCOAL.TBLENDGAS",{"$f":"IFERROR(INDEX(CHARCOAL_VAL,MATCH(C$12,Item1Tab1,0)),0)","v":0}]
["CHARCOAL.TBLENDOIL",{"$f":"IFERROR(INDEX(CHARCOAL_VAL,MATCH(C$13,Item1Tab1,0)),0)","v":0}]
["CHARCOAL.TOTENGY",{"$f":"IFERROR(INDEX(CHARCOAL_VAL,MATCH(C$14,Item1Tab1,0)),0)","v":0}]
["CHARCOAL.DISTLOSS",{"$f":"IFERROR(INDEX(CHARCOAL_VAL,MATCH(C$15,Item1Tab1,0)),0)","v":0}]
["CHARCOAL.FINCONS",{"$f":"IFERROR(INDEX(CHARCOAL_VAL,MATCH(C$16,Item1Tab1,0)),0)","v":0}]
["CHARCOAL.FINECONS",{"$f":"IFERROR(INDEX(CHARCOAL_VAL,MATCH(C$17,Item1Tab1,0)),0)","v":0}]
["CHARCOAL.TOTIND",{"$f":"IFERROR(INDEX(CHARCOAL_VAL,MATCH(C$18,Item1Tab1,0)),0)","v":0}]
["CHARCOAL.TOTTRANS",{"$f":"IFERROR(INDEX(CHARCOAL_VAL,MATCH(C$19,Item1Tab1,0)),0)","v":0}]
["CHARCOAL.TOTOTHER",{"$f":"IFERROR(INDEX(CHARCOAL_VAL,MATCH(C$20,Item1Tab1,0)),0)","v":0}]
["CHARCOAL.COMMPUB",{"$f":"IFERROR(INDEX(CHARCOAL_VAL,MATCH(C$21,Item1Tab1,0)),0)","v":0}]
["CHARCOAL.RESIDENT",{"$f":"IFERROR(INDEX(CHARCOAL_VAL,MATCH(C$22,Item1Tab1,0)),0)","v":0}]
["BIOGASES.INDPROD",{"$f":"IFERROR(INDEX(BIOGASES_VAL,MATCH(C$4,Item1Tab1,0)),0)","v":0}]
["BIOGASES.TOTIMPSB",{"$f":"IFERROR(INDEX(BIOGASES_VAL,MATCH(C$5,Item1Tab1,0)),0)","v":0}]
["BIOGASES.TOTEXPSB",{"$f":"IFERROR(INDEX(BIOGASES_VAL,MATCH(C$6,Item1Tab1,0)),0)","v":0}]
["BIOGASES.STCHANAT",{"$f":"IFERROR(INDEX(BIOGASES_VAL,MATCH(C$7,Item1Tab1,0)),0)","v":0}]
["BIOGASES.INDCONC",{"$f":"IFERROR(INDEX(BIOGASES_VAL,MATCH(C$8,Item1Tab1,0)),0)","v":0}]
["BIOGASES.STATDIFF",{"$f":"IFERROR(INDEX(BIOGASES_VAL,MATCH(C$9,Item1Tab1,0)),0)","v":0}]
["BIOGASES.TOTTRANF",{"$f":"IFERROR(INDEX(BIOGASES_VAL,MATCH(C$10,Item1Tab1,0)),0)","v":0}]
["BIOGASES.MTOELEHEAT",{"$f":"IFERROR(INDEX(BIOGASES_VAL,MATCH(C$11,Item1Tab1,0)),0)","v":0}]
["BIOGASES.TBLENDGAS",{"$f":"IFERROR(INDEX(BIOGASES_VAL,MATCH(C$12,Item1Tab1,0)),0)","v":0}]
["BIOGASES.TBLENDOIL",{"$f":"IFERROR(INDEX(BIOGASES_VAL,MATCH(C$13,Item1Tab1,0)),0)","v":0}]
["BIOGASES.TOTENGY",{"$f":"IFERROR(INDEX(BIOGASES_VAL,MATCH(C$14,Item1Tab1,0)),0)","v":0}]
["BIOGASES.DISTLOSS",{"$f":"IFERROR(INDEX(BIOGASES_VAL,MATCH(C$15,Item1Tab1,0)),0)","v":0}]
["BIOGASES.FINCONS",{"$f":"IFERROR(INDEX(BIOGASES_VAL,MATCH(C$16,Item1Tab1,0)),0)","v":0}]
["BIOGASES.FINECONS",{"$f":"IFERROR(INDEX(BIOGASES_VAL,MATCH(C$17,Item1Tab1,0)),0)","v":0}]
["BIOGASES.TOTIND",{"$f":"IFERROR(INDEX(BIOGASES_VAL,MATCH(C$18,Item1Tab1,0)),0)","v":0}]
["BIOGASES.TOTTRANS",{"$f":"IFERROR(INDEX(BIOGASES_VAL,MATCH(C$19,Item1Tab1,0)),0)","v":0}]
["BIOGASES.TOTOTHER",{"$f":"IFERROR(INDEX(BIOGASES_VAL,MATCH(C$20,Item1Tab1,0)),0)","v":0}]
["BIOGASES.COMMPUB",{"$f":"IFERROR(INDEX(BIOGASES_VAL,MATCH(C$21,Item1Tab1,0)),0)","v":0}]
["BIOGASES.RESIDENT",{"$f":"IFERROR(INDEX(BIOGASES_VAL,MATCH(C$22,Item1Tab1,0)),0)","v":0}]
["BIOGASOL.INDPROD",{"$f":"IFERROR(INDEX(BIOGASOL_VAL,MATCH(C$4,Item1Tab1,0)),0)","v":0}]
["BIOGASOL.TOTIMPSB",{"$f":"IFERROR(INDEX(BIOGASOL_VAL,MATCH(C$5,Item1Tab1,0)),0)","v":0}]
["BIOGASOL.TOTEXPSB",{"$f":"IFERROR(INDEX(BIOGASOL_VAL,MATCH(C$6,Item1Tab1,0)),0)","v":0}]
["BIOGASOL.STCHANAT",{"$f":"IFERROR(INDEX(BIOGASOL_VAL,MATCH(C$7,Item1Tab1,0)),0)","v":0}]
["BIOGASOL.INDCONC",{"$f":"IFERROR(INDEX(BIOGASOL_VAL,MATCH(C$8,Item1Tab1,0)),0)","v":0}]
["BIOGASOL.STATDIFF",{"$f":"IFERROR(INDEX(BIOGASOL_VAL,MATCH(C$9,Item1Tab1,0)),0)","v":0}]
["BIOGASOL.TOTTRANF",{"$f":"IFERROR(INDEX(BIOGASOL_VAL,MATCH(C$10,Item1Tab1,0)),0)","v":0}]
["BIOGASOL.MTOELEHEAT",{"$f":"IFERROR(INDEX(BIOGASOL_VAL,MATCH(C$11,Item1Tab1,0)),0)","v":0}]
["BIOGASOL.TBLENDGAS",{"$f":"IFERROR(INDEX(BIOGASOL_VAL,MATCH(C$12,Item1Tab1,0)),0)","v":0}]
["BIOGASOL.TBLENDOIL",{"$f":"IFERROR(INDEX(BIOGASOL_VAL,MATCH(C$13,Item1Tab1,0)),0)","v":0}]
["BIOGASOL.TOTENGY",{"$f":"IFERROR(INDEX(BIOGASOL_VAL,MATCH(C$14,Item1Tab1,0)),0)","v":0}]
["BIOGASOL.DISTLOSS",{"$f":"IFERROR(INDEX(BIOGASOL_VAL,MATCH(C$15,Item1Tab1,0)),0)","v":0}]
["BIOGASOL.FINCONS",{"$f":"IFERROR(INDEX(BIOGASOL_VAL,MATCH(C$16,Item1Tab1,0)),0)","v":0}]
["BIOGASOL.FINECONS",{"$f":"IFERROR(INDEX(BIOGASOL_VAL,MATCH(C$17,Item1Tab1,0)),0)","v":0}]
["BIOGASOL.TOTIND",{"$f":"IFERROR(INDEX(BIOGASOL_VAL,MATCH(C$18,Item1Tab1,0)),0)","v":0}]
["BIOGASOL.TOTTRANS",{"$f":"IFERROR(INDEX(BIOGASOL_VAL,MATCH(C$19,Item1Tab1,0)),0)","v":0}]
["BIOGASOL.TOTOTHER",{"$f":"IFERROR(INDEX(BIOGASOL_VAL,MATCH(C$20,Item1Tab1,0)),0)","v":0}]
["BIOGASOL.COMMPUB",{"$f":"IFERROR(INDEX(BIOGASOL_VAL,MATCH(C$21,Item1Tab1,0)),0)","v":0}]
["BIOGASOL.RESIDENT",{"$f":"IFERROR(INDEX(BIOGASOL_VAL,MATCH(C$22,Item1Tab1,0)),0)","v":0}]
["BIOETHANOL.INDPROD",{"$f":"IFERROR(INDEX(BIOETHANOL_VAL,MATCH(C$4,Item1Tab1,0)),0)","v":0}]
["BIOETHANOL.TOTIMPSB",{"$f":"IFERROR(INDEX(BIOETHANOL_VAL,MATCH(C$5,Item1Tab1,0)),0)","v":0}]
["BIOETHANOL.TOTEXPSB",{"$f":"IFERROR(INDEX(BIOETHANOL_VAL,MATCH(C$6,Item1Tab1,0)),0)","v":0}]
["BIOETHANOL.STCHANAT",{"$f":"IFERROR(INDEX(BIOETHANOL_VAL,MATCH(C$7,Item1Tab1,0)),0)","v":0}]
["BIOETHANOL.INDCONC",{"$f":"IFERROR(INDEX(BIOETHANOL_VAL,MATCH(C$8,Item1Tab1,0)),0)","v":0}]
["BIOETHANOL.STATDIFF",{"$f":"IFERROR(INDEX(BIOETHANOL_VAL,MATCH(C$9,Item1Tab1,0)),0)","v":0}]
["BIOETHANOL.TOTTRANF",{"$f":"IFERROR(INDEX(BIOETHANOL_VAL,MATCH(C$10,Item1Tab1,0)),0)","v":0}]
["BIOETHANOL.MTOELEHEAT",{"$f":"IFERROR(INDEX(BIOETHANOL_VAL,MATCH(C$11,Item1Tab1,0)),0)","v":0}]
["BIOETHANOL.TBLENDGAS",{"$f":"IFERROR(INDEX(BIOETHANOL_VAL,MATCH(C$12,Item1Tab1,0)),0)","v":0}]
["BIOETHANOL.TBLENDOIL",{"$f":"IFERROR(INDEX(BIOETHANOL_VAL,MATCH(C$13,Item1Tab1,0)),0)","v":0}]
["BIOETHANOL.TOTENGY",{"$f":"IFERROR(INDEX(BIOETHANOL_VAL,MATCH(C$14,Item1Tab1,0)),0)","v":0}]
["BIOETHANOL.DISTLOSS",{"$f":"IFERROR(INDEX(BIOETHANOL_VAL,MATCH(C$15,Item1Tab1,0)),0)","v":0}]
["BIOETHANOL.FINCONS",{"$f":"IFERROR(INDEX(BIOETHANOL_VAL,MATCH(C$16,Item1Tab1,0)),0)","v":0}]
["BIOETHANOL.FINECONS",{"$f":"IFERROR(INDEX(BIOETHANOL_VAL,MATCH(C$17,Item1Tab1,0)),0)","v":0}]
["BIOETHANOL.TOTIND",{"$f":"IFERROR(INDEX(BIOETHANOL_VAL,MATCH(C$18,Item1Tab1,0)),0)","v":0}]
["BIOETHANOL.TOTTRANS",{"$f":"IFERROR(INDEX(BIOETHANOL_VAL,MATCH(C$19,Item1Tab1,0)),0)","v":0}]
["BIOETHANOL.TOTOTHER",{"$f":"IFERROR(INDEX(BIOETHANOL_VAL,MATCH(C$20,Item1Tab1,0)),0)","v":0}]
["BIOETHANOL.COMMPUB",{"$f":"IFERROR(INDEX(BIOETHANOL_VAL,MATCH(C$21,Item1Tab1,0)),0)","v":0}]
["BIOETHANOL.RESIDENT",{"$f":"IFERROR(INDEX(BIOETHANOL_VAL,MATCH(C$22,Item1Tab1,0)),0)","v":0}]
["BIOJETKERO.INDPROD",{"$f":"IFERROR(INDEX(BIOJETKERO_VAL,MATCH(C$4,Item1Tab1,0)),0)","v":0}]
["BIOJETKERO.TOTIMPSB",{"$f":"IFERROR(INDEX(BIOJETKERO_VAL,MATCH(C$5,Item1Tab1,0)),0)","v":0}]
["BIOJETKERO.TOTEXPSB",{"$f":"IFERROR(INDEX(BIOJETKERO_VAL,MATCH(C$6,Item1Tab1,0)),0)","v":0}]
["BIOJETKERO.STCHANAT",{"$f":"IFERROR(INDEX(BIOJETKERO_VAL,MATCH(C$7,Item1Tab1,0)),0)","v":0}]
["BIOJETKERO.INDCONC",{"$f":"IFERROR(INDEX(BIOJETKERO_VAL,MATCH(C$8,Item1Tab1,0)),0)","v":0}]
["BIOJETKERO.STATDIFF",{"$f":"IFERROR(INDEX(BIOJETKERO_VAL,MATCH(C$9,Item1Tab1,0)),0)","v":0}]
["BIOJETKERO.TOTTRANF",{"$f":"IFERROR(INDEX(BIOJETKERO_VAL,MATCH(C$10,Item1Tab1,0)),0)","v":0}]
["BIOJETKERO.MTOELEHEAT",{"$f":"IFERROR(INDEX(BIOJETKERO_VAL,MATCH(C$11,Item1Tab1,0)),0)","v":0}]
["BIOJETKERO.TBLENDGAS",{"$f":"IFERROR(INDEX(BIOJETKERO_VAL,MATCH(C$12,Item1Tab1,0)),0)","v":0}]
["BIOJETKERO.TBLENDOIL",{"$f":"IFERROR(INDEX(BIOJETKERO_VAL,MATCH(C$13,Item1Tab1,0)),0)","v":0}]
["BIOJETKERO.TOTENGY",{"$f":"IFERROR(INDEX(BIOJETKERO_VAL,MATCH(C$14,Item1Tab1,0)),0)","v":0}]
["BIOJETKERO.DISTLOSS",{"$f":"IFERROR(INDEX(BIOJETKERO_VAL,MATCH(C$15,Item1Tab1,0)),0)","v":0}]
["BIOJETKERO.FINCONS",{"$f":"IFERROR(INDEX(BIOJETKERO_VAL,MATCH(C$16,Item1Tab1,0)),0)","v":0}]
["BIOJETKERO.FINECONS",{"$f":"IFERROR(INDEX(BIOJETKERO_VAL,MATCH(C$17,Item1Tab1,0)),0)","v":0}]
["BIOJETKERO.TOTIND",{"$f":"IFERROR(INDEX(BIOJETKERO_VAL,MATCH(C$18,Item1Tab1,0)),0)","v":0}]
["BIOJETKERO.TOTTRANS",{"$f":"IFERROR(INDEX(BIOJETKERO_VAL,MATCH(C$19,Item1Tab1,0)),0)","v":0}]
["BIOJETKERO.TOTOTHER",{"$f":"IFERROR(INDEX(BIOJETKERO_VAL,MATCH(C$20,Item1Tab1,0)),0)","v":0}]
["BIOJETKERO.COMMPUB",{"$f":"IFERROR(INDEX(BIOJETKERO_VAL,MATCH(C$21,Item1Tab1,0)),0)","v":0}]
["BIOJETKERO.RESIDENT",{"$f":"IFERROR(INDEX(BIOJETKERO_VAL,MATCH(C$22,Item1Tab1,0)),0)","v":0}]
["BIODIESEL.INDPROD",{"$f":"IFERROR(INDEX(BIODIESEL_VAL,MATCH(C$4,Item1Tab1,0)),0)","v":0}]
["BIODIESEL.TOTIMPSB",{"$f":"IFERROR(INDEX(BIODIESEL_VAL,MATCH(C$5,Item1Tab1,0)),0)","v":0}]
["BIODIESEL.TOTEXPSB",{"$f":"IFERROR(INDEX(BIODIESEL_VAL,MATCH(C$6,Item1Tab1,0)),0)","v":0}]
["BIODIESEL.STCHANAT",{"$f":"IFERROR(INDEX(BIODIESEL_VAL,MATCH(C$7,Item1Tab1,0)),0)","v":0}]
["BIODIESEL.INDCONC",{"$f":"IFERROR(INDEX(BIODIESEL_VAL,MATCH(C$8,Item1Tab1,0)),0)","v":0}]
["BIODIESEL.STATDIFF",{"$f":"IFERROR(INDEX(BIODIESEL_VAL,MATCH(C$9,Item1Tab1,0)),0)","v":0}]
["BIODIESEL.TOTTRANF",{"$f":"IFERROR(INDEX(BIODIESEL_VAL,MATCH(C$10,Item1Tab1,0)),0)","v":0}]
["BIODIESEL.MTOELEHEAT",{"$f":"IFERROR(INDEX(BIODIESEL_VAL,MATCH(C$11,Item1Tab1,0)),0)","v":0}]
["BIODIESEL.TBLENDGAS",{"$f":"IFERROR(INDEX(BIODIESEL_VAL,MATCH(C$12,Item1Tab1,0)),0)","v":0}]
["BIODIESEL.TBLENDOIL",{"$f":"IFERROR(INDEX(BIODIESEL_VAL,MATCH(C$13,Item1Tab1,0)),0)","v":0}]
["BIODIESEL.TOTENGY",{"$f":"IFERROR(INDEX(BIODIESEL_VAL,MATCH(C$14,Item1Tab1,0)),0)","v":0}]
["BIODIESEL.DISTLOSS",{"$f":"IFERROR(INDEX(BIODIESEL_VAL,MATCH(C$15,Item1Tab1,0)),0)","v":0}]
["BIODIESEL.FINCONS",{"$f":"IFERROR(INDEX(BIODIESEL_VAL,MATCH(C$16,Item1Tab1,0)),0)","v":0}]
["BIODIESEL.FINECONS",{"$f":"IFERROR(INDEX(BIODIESEL_VAL,MATCH(C$17,Item1Tab1,0)),0)","v":0}]
["BIODIESEL.TOTIND",{"$f":"IFERROR(INDEX(BIODIESEL_VAL,MATCH(C$18,Item1Tab1,0)),0)","v":0}]
["BIODIESEL.TOTTRANS",{"$f":"IFERROR(INDEX(BIODIESEL_VAL,MATCH(C$19,Item1Tab1,0)),0)","v":0}]
["BIODIESEL.TOTOTHER",{"$f":"IFERROR(INDEX(BIODIESEL_VAL,MATCH(C$20,Item1Tab1,0)),0)","v":0}]
["BIODIESEL.COMMPUB",{"$f":"IFERROR(INDEX(BIODIESEL_VAL,MATCH(C$21,Item1Tab1,0)),0)","v":0}]
["BIODIESEL.RESIDENT",{"$f":"IFERROR(INDEX(BIODIESEL_VAL,MATCH(C$22,Item1Tab1,0)),0)","v":0}]
["OBIOLIQ.INDPROD",{"$f":"IFERROR(INDEX(OBIOLIQ_VAL,MATCH(C$4,Item1Tab1,0)),0)","v":0}]
["OBIOLIQ.TOTIMPSB",{"$f":"IFERROR(INDEX(OBIOLIQ_VAL,MATCH(C$5,Item1Tab1,0)),0)","v":0}]
["OBIOLIQ.TOTEXPSB",{"$f":"IFERROR(INDEX(OBIOLIQ_VAL,MATCH(C$6,Item1Tab1,0)),0)","v":0}]
["OBIOLIQ.STCHANAT",{"$f":"IFERROR(INDEX(OBIOLIQ_VAL,MATCH(C$7,Item1Tab1,0)),0)","v":0}]
["OBIOLIQ.INDCONC",{"$f":"IFERROR(INDEX(OBIOLIQ_VAL,MATCH(C$8,Item1Tab1,0)),0)","v":0}]
["OBIOLIQ.STATDIFF",{"$f":"IFERROR(INDEX(OBIOLIQ_VAL,MATCH(C$9,Item1Tab1,0)),0)","v":0}]
["OBIOLIQ.TOTTRANF",{"$f":"IFERROR(INDEX(OBIOLIQ_VAL,MATCH(C$10,Item1Tab1,0)),0)","v":0}]
["OBIOLIQ.MTOELEHEAT",{"$f":"IFERROR(INDEX(OBIOLIQ_VAL,MATCH(C$11,Item1Tab1,0)),0)","v":0}]
["OBIOLIQ.TBLENDGAS",{"$f":"IFERROR(INDEX(OBIOLIQ_VAL,MATCH(C$12,Item1Tab1,0)),0)","v":0}]
["OBIOLIQ.TBLENDOIL",{"$f":"IFERROR(INDEX(OBIOLIQ_VAL,MATCH(C$13,Item1Tab1,0)),0)","v":0}]
["OBIOLIQ.TOTENGY",{"$f":"IFERROR(INDEX(OBIOLIQ_VAL,MATCH(C$14,Item1Tab1,0)),0)","v":0}]
["OBIOLIQ.DISTLOSS",{"$f":"IFERROR(INDEX(OBIOLIQ_VAL,MATCH(C$15,Item1Tab1,0)),0)","v":0}]
["OBIOLIQ.FINCONS",{"$f":"IFERROR(INDEX(OBIOLIQ_VAL,MATCH(C$16,Item1Tab1,0)),0)","v":0}]
["OBIOLIQ.FINECONS",{"$f":"IFERROR(INDEX(OBIOLIQ_VAL,MATCH(C$17,Item1Tab1,0)),0)","v":0}]
["OBIOLIQ.TOTIND",{"$f":"IFERROR(INDEX(OBIOLIQ_VAL,MATCH(C$18,Item1Tab1,0)),0)","v":0}]
["OBIOLIQ.TOTTRANS",{"$f":"IFERROR(INDEX(OBIOLIQ_VAL,MATCH(C$19,Item1Tab1,0)),0)","v":0}]
["OBIOLIQ.TOTOTHER",{"$f":"IFERROR(INDEX(OBIOLIQ_VAL,MATCH(C$20,Item1Tab1,0)),0)","v":0}]
["OBIOLIQ.COMMPUB",{"$f":"IFERROR(INDEX(OBIOLIQ_VAL,MATCH(C$21,Item1Tab1,0)),0)","v":0}]
["OBIOLIQ.RESIDENT",{"$f":"IFERROR(INDEX(OBIOLIQ_VAL,MATCH(C$22,Item1Tab1,0)),0)","v":0}]
["LANDFILL.INDPROD",{"$f":"IFERROR(LANDFILL_VAL,0)","v":0}]
["SLUDGEGS.INDPROD",{"$f":"IFERROR(SLUDGEGS_VAL,0)","v":0}]
["OBIOGAS.INDPROD",{"$f":"IFERROR(OBIOGAS_VAL,0)","v":0}]
["BGTHERM.INDPROD",{"$f":"IFERROR(BGTHERM_VAL,0)","v":0}]